Department family,Entity,Date,Expense Type,Expense area,Supplier,Transaction number,AP Amount (�)
Department of Health,NHS Sheffield CCG,31/12/2019,Cont Care-NHSFT-Adult 100% Funded,CHC ADULT FULLY FUNDED,SHEFFIELD HEALTH & SOCIAL CARE NHS FOUNDATION TRUST,30036299,"240,471.70 "
Department of Health,NHS Sheffield CCG,31/12/2019,C&M-GMS IT Comm Servs -GP Practices,PRIMARY CARE IT,KIER BUSINESS SERVICES LTD,30051414,"25,683.72 "
Department of Health,NHS Sheffield CCG,31/12/2019,Hcare Srv Rec NHS Trust-Contract Baseline,ACUTE COMMISSIONING,LEEDS TEACHING HOSPITALS NHS TRUST,30051429,"57,500.00 "
Department of Health,NHS Sheffield CCG,31/12/2019,Charges from CSU,BUSINESS INFORMATICS,NHS NORTH OF ENGLAND CSU,30051430,"27,376.00 "
Department of Health,NHS Sheffield CCG,31/12/2019,Clinical&Medical-Independent Sector,ACUTE COMMISSIONING,BMI HEALTHCARE LTD,30051438,"59,155.50 "
Department of Health,NHS Sheffield CCG,31/12/2019,Clinical&Medical-Devolved Admin'n,NCAS/OATS,BETSI CADWALADR UNIVERSITY LHB,30051447,"25,587.00 "
Department of Health,NHS Sheffield CCG,31/12/2019,Hcare Srv Rec Fdtn Trust-Contract Baseline,ACUTE CHILDRENS SERVICES,SHEFFIELD CHILDRENS NHS FOUNDATION TRUST,30051498,"115,226.49 "
Department of Health,NHS Sheffield CCG,31/12/2019,Hcare Srv Rec Fdtn Trust-Contract Baseline,ACUTE COMMISSIONING,ROTHERHAM NHS FOUNDATION TRUST,30051502,"466,729.00 "
Department of Health,NHS Sheffield CCG,31/12/2019,Charges from CSU,PRIMARY CARE IT,NHS MIDLANDS AND LANCASHIRE CSU,30051547,"31,985.00 "
Department of Health,NHS Sheffield CCG,31/12/2019,Hcare Srv Rec Fdtn Trust-Contract Baseline,ACUTE COMMISSIONING,BARNSLEY HOSPITAL NHS FOUNDATION TRUST,30051552,"86,710.00 "
Department of Health,NHS Sheffield CCG,31/12/2019,Hcare Srv Rec NHS Trust-Contract Baseline,AMBULANCE SERVICES,YORKSHIRE AMBULANCE SERVICE NHS TRUST,30051600,"1,674,240.00 "
Department of Health,NHS Sheffield CCG,31/12/2019,Hcare Srv Rec NHS Trust-Contract Baseline,NHS 111,YORKSHIRE AMBULANCE SERVICE NHS TRUST,30051603,"133,605.27 "
Department of Health,NHS Sheffield CCG,31/12/2019,Hcare Srv Rec NHS Trust-Contract Baseline,AMBULANCE SERVICES,YORKSHIRE AMBULANCE SERVICE NHS TRUST,30051606,"127,348.75 "
Department of Health,NHS Sheffield CCG,31/12/2019,Hcare Srv Rec NHS Trust-Contract Baseline,PATIENT TRANSPORT,YORKSHIRE AMBULANCE SERVICE NHS TRUST,30051621,"267,243.94 "
Department of Health,NHS Sheffield CCG,31/12/2019,Services From Local Authorities,MENTAL HEALTH SERVICES - COLLABORATIVE COMMISSIONING,SHEFFIELD CITY COUNCIL,30070651,"37,776.60 "
Department of Health,NHS Sheffield CCG,31/12/2019,Voids and Subsidies,PRC DELEGATED CO-COMMISSIONING,COMMUNITY HEALTH PARTNERSHIPS LTD,30106897,"37,050.51 "
Department of Health,NHS Sheffield CCG,31/12/2019,Voids and Subsidies,RECHARGES NHS PROPERTY SERVICES LTD,COMMUNITY HEALTH PARTNERSHIPS LTD,30106897,"117,396.67 "
Department of Health,NHS Sheffield CCG,31/12/2019,Clinical&Medical-Independent Sector,ACUTE COMMISSIONING,ONEHEALTH GROUP,30106905,"71,286.25 "
Department of Health,NHS Sheffield CCG,31/12/2019,Cont Care- Adult 100% Fully Funded,CHC ADULT FULLY FUNDED,SOUTH YORKSHIRE HOUSING ASSOCIATION LTD,30106917,"46,763.59 "
Department of Health,NHS Sheffield CCG,31/12/2019,C&M-PMS Contract Value,PRC DELEGATED CO-COMMISSIONING,AVENUE MEDICAL CENTRE SHEFFIELD,30122127,"55,216.47 "
Department of Health,NHS Sheffield CCG,31/12/2019,C&M-PMS DES Learn Dsblty Hlth Chk,PRC DELEGATED CO-COMMISSIONING,AVENUE MEDICAL CENTRE SHEFFIELD,30122127,"2,100.00 "
Department of Health,NHS Sheffield CCG,31/12/2019,C&M-PMS Out of Hours Opt Outs,PRC DELEGATED CO-COMMISSIONING,AVENUE MEDICAL CENTRE SHEFFIELD,30122127,10.28 
Department of Health,NHS Sheffield CCG,31/12/2019,C&M-PMS PCN DES Participation,PRC DELEGATED CO-COMMISSIONING,AVENUE MEDICAL CENTRE SHEFFIELD,30122127,"1,058.32 "
Department of Health,NHS Sheffield CCG,31/12/2019,C&M-PMS PCO Other,PRC DELEGATED CO-COMMISSIONING,AVENUE MEDICAL CENTRE SHEFFIELD,30122127,460.30 
Department of Health,NHS Sheffield CCG,31/12/2019,C&M-PMS Prem Notional Rent,PRC DELEGATED CO-COMMISSIONING,AVENUE MEDICAL CENTRE SHEFFIELD,30122127,"5,546.67 "
Department of Health,NHS Sheffield CCG,31/12/2019,C&M-PMS Prem Rates,PRC DELEGATED CO-COMMISSIONING,AVENUE MEDICAL CENTRE SHEFFIELD,30122127,"1,264.00 "
Department of Health,NHS Sheffield CCG,31/12/2019,C&M-PMS Prem Water Rates,PRC DELEGATED CO-COMMISSIONING,AVENUE MEDICAL CENTRE SHEFFIELD,30122127,149.00 
Department of Health,NHS Sheffield CCG,31/12/2019,C&M-PMS QOF Aspiration,PRC DELEGATED CO-COMMISSIONING,AVENUE MEDICAL CENTRE SHEFFIELD,30122127,"5,847.72 "
Department of Health,NHS Sheffield CCG,31/12/2019,C&M-PMS Contract Value,PRC DELEGATED CO-COMMISSIONING,ABBEY LANE SURGERY,30122129,"23,961.82 "
Department of Health,NHS Sheffield CCG,31/12/2019,C&M-PMS DES Learn Dsblty Hlth Chk,PRC DELEGATED CO-COMMISSIONING,ABBEY LANE SURGERY,30122129,140.00 
Department of Health,NHS Sheffield CCG,31/12/2019,C&M-PMS Out of Hours Opt Outs,PRC DELEGATED CO-COMMISSIONING,ABBEY LANE SURGERY,30122129,23.10 
Department of Health,NHS Sheffield CCG,31/12/2019,C&M-PMS PCN DES Participation,PRC DELEGATED CO-COMMISSIONING,ABBEY LANE SURGERY,30122129,452.23 
Department of Health,NHS Sheffield CCG,31/12/2019,C&M-PMS PCO Other,PRC DELEGATED CO-COMMISSIONING,ABBEY LANE SURGERY,30122129,950.60 
Department of Health,NHS Sheffield CCG,31/12/2019,C&M-PMS Prem Notional Rent,PRC DELEGATED CO-COMMISSIONING,ABBEY LANE SURGERY,30122129,"2,122.92 "
Department of Health,NHS Sheffield CCG,31/12/2019,C&M-PMS Prem Rates,PRC DELEGATED CO-COMMISSIONING,ABBEY LANE SURGERY,30122129,761.00 
Department of Health,NHS Sheffield CCG,31/12/2019,C&M-PMS QOF Aspiration,PRC DELEGATED CO-COMMISSIONING,ABBEY LANE SURGERY,30122129,"2,636.98 "
Department of Health,NHS Sheffield CCG,31/12/2019,C&M-PMS Contract Value,PRC DELEGATED CO-COMMISSIONING,BARNSLEY ROAD SURGERY,30122131,"21,707.99 "
Department of Health,NHS Sheffield CCG,31/12/2019,C&M-PMS DES Learn Dsblty Hlth Chk,PRC DELEGATED CO-COMMISSIONING,BARNSLEY ROAD SURGERY,30122131,"1,540.00 "
Department of Health,NHS Sheffield CCG,31/12/2019,C&M-PMS PCN DES Participation,PRC DELEGATED CO-COMMISSIONING,BARNSLEY ROAD SURGERY,30122131,410.63 
Department of Health,NHS Sheffield CCG,31/12/2019,C&M-PMS Prem Notional Rent,PRC DELEGATED CO-COMMISSIONING,BARNSLEY ROAD SURGERY,30122131,"2,652.17 "
Department of Health,NHS Sheffield CCG,31/12/2019,C&M-PMS Prem Water Rates,PRC DELEGATED CO-COMMISSIONING,BARNSLEY ROAD SURGERY,30122131,76.11 
Department of Health,NHS Sheffield CCG,31/12/2019,C&M-PMS QOF Aspiration,PRC DELEGATED CO-COMMISSIONING,BARNSLEY ROAD SURGERY,30122131,"2,377.21 "
Department of Health,NHS Sheffield CCG,31/12/2019,C&M-PMS GP Statutory Levy,PRC DELEGATED CO-COMMISSIONING,BIRLEY HEALTH CENTRE,30122132,(300.06)
Department of Health,NHS Sheffield CCG,31/12/2019,C&M-PMS Out of Hours Opt Outs,PRC DELEGATED CO-COMMISSIONING,BIRLEY HEALTH CENTRE,30122132,"(3,015.82)"
Department of Health,NHS Sheffield CCG,31/12/2019,C&M-PMS Contract Value,PRC DELEGATED CO-COMMISSIONING,BURNCROSS SURGERY,30122134,"121,307.81 "
Department of Health,NHS Sheffield CCG,31/12/2019,C&M-PMS DES Learn Dsblty Hlth Chk,PRC DELEGATED CO-COMMISSIONING,BURNCROSS SURGERY,30122134,"2,100.00 "
Department of Health,NHS Sheffield CCG,31/12/2019,C&M-PMS PCN DES Participation,PRC DELEGATED CO-COMMISSIONING,BURNCROSS SURGERY,30122134,"2,292.15 "
Department of Health,NHS Sheffield CCG,31/12/2019,C&M-PMS PCO Seniority,PRC DELEGATED CO-COMMISSIONING,BURNCROSS SURGERY,30122134,"2,025.00 "
Department of Health,NHS Sheffield CCG,31/12/2019,C&M-PMS Prem Notional Rent,PRC DELEGATED CO-COMMISSIONING,BURNCROSS SURGERY,30122134,"14,058.33 "
Department of Health,NHS Sheffield CCG,31/12/2019,C&M-PMS QOF Aspiration,PRC DELEGATED CO-COMMISSIONING,BURNCROSS SURGERY,30122134,"15,732.40 "
Department of Health,NHS Sheffield CCG,31/12/2019,C&M-PMS Contract Value,PRC DELEGATED CO-COMMISSIONING,BURNGREAVE SURGERY,30122136,"57,511.35 "
Department of Health,NHS Sheffield CCG,31/12/2019,C&M-PMS Out of Hours Opt Outs,PRC DELEGATED CO-COMMISSIONING,BURNGREAVE SURGERY,30122136,6.70 
Department of Health,NHS Sheffield CCG,31/12/2019,C&M-PMS PCN DES Participation,PRC DELEGATED CO-COMMISSIONING,BURNGREAVE SURGERY,30122136,"1,088.98 "
Department of Health,NHS Sheffield CCG,31/12/2019,C&M-PMS Prem Notional Rent,PRC DELEGATED CO-COMMISSIONING,BURNGREAVE SURGERY,30122136,"6,622.92 "
Department of Health,NHS Sheffield CCG,31/12/2019,C&M-PMS Prem Rates,PRC DELEGATED CO-COMMISSIONING,BURNGREAVE SURGERY,30122136,"2,140.00 "
Department of Health,NHS Sheffield CCG,31/12/2019,C&M-PMS QOF Aspiration,PRC DELEGATED CO-COMMISSIONING,BURNGREAVE SURGERY,30122136,"5,288.96 "
Department of Health,NHS Sheffield CCG,31/12/2019,C&M-APMS Contract Value,PRC DELEGATED CO-COMMISSIONING,CLOVER GROUP PRACTICE,30122138,"128,095.85 "
Department of Health,NHS Sheffield CCG,31/12/2019,C&M-APMS PCN DES Participation,PRC DELEGATED CO-COMMISSIONING,CLOVER GROUP PRACTICE,30122138,"2,421.56 "
Department of Health,NHS Sheffield CCG,31/12/2019,C&M-APMS Prem Actual Rent,PRC DELEGATED CO-COMMISSIONING,CLOVER GROUP PRACTICE,30122138,"7,973.85 "
Department of Health,NHS Sheffield CCG,31/12/2019,C&M-APMS Prem Healthcentre Rent,PRC DELEGATED CO-COMMISSIONING,CLOVER GROUP PRACTICE,30122138,"59,658.86 "
Department of Health,NHS Sheffield CCG,31/12/2019,C&M-APMS Prem Notional Rent,PRC DELEGATED CO-COMMISSIONING,CLOVER GROUP PRACTICE,30122138,"2,804.17 "
Department of Health,NHS Sheffield CCG,31/12/2019,C&M-PMS QOF Aspiration,PRC DELEGATED CO-COMMISSIONING,CLOVER GROUP PRACTICE,30122138,"11,480.20 "
Department of Health,NHS Sheffield CCG,31/12/2019,C&M-PMS Contract Value,PRC DELEGATED CO-COMMISSIONING,DEEPCAR MEDICAL CENTRE,30122139,"42,322.95 "
Department of Health,NHS Sheffield CCG,31/12/2019,C&M-PMS DES Learn Dsblty Hlth Chk,PRC DELEGATED CO-COMMISSIONING,DEEPCAR MEDICAL CENTRE,30122139,280.00 
Department of Health,NHS Sheffield CCG,31/12/2019,C&M-PMS Out of Hours Opt Outs,PRC DELEGATED CO-COMMISSIONING,DEEPCAR MEDICAL CENTRE,30122139,12.61 
Department of Health,NHS Sheffield CCG,31/12/2019,C&M-PMS PCN DES Participation,PRC DELEGATED CO-COMMISSIONING,DEEPCAR MEDICAL CENTRE,30122139,789.85 
Department of Health,NHS Sheffield CCG,31/12/2019,C&M-PMS PCO Seniority,PRC DELEGATED CO-COMMISSIONING,DEEPCAR MEDICAL CENTRE,30122139,989.03 
Department of Health,NHS Sheffield CCG,31/12/2019,C&M-PMS Prem Healthcentre Rent,PRC DELEGATED CO-COMMISSIONING,DEEPCAR MEDICAL CENTRE,30122139,"29,915.44 "
Department of Health,NHS Sheffield CCG,31/12/2019,C&M-PMS QOF Aspiration,PRC DELEGATED CO-COMMISSIONING,DEEPCAR MEDICAL CENTRE,30122139,"4,298.67 "
Department of Health,NHS Sheffield CCG,31/12/2019,C&M-PMS Contract Value,PRC DELEGATED CO-COMMISSIONING,DOVERCOURT SURGERY,30122141,"73,999.72 "
Department of Health,NHS Sheffield CCG,31/12/2019,C&M-PMS DES Learn Dsblty Hlth Chk,PRC DELEGATED CO-COMMISSIONING,DOVERCOURT SURGERY,30122141,840.00 
Department of Health,NHS Sheffield CCG,31/12/2019,C&M-PMS Out of Hours Opt Outs,PRC DELEGATED CO-COMMISSIONING,DOVERCOURT SURGERY,30122141,8.40 
Department of Health,NHS Sheffield CCG,31/12/2019,C&M-PMS PCN DES Participation,PRC DELEGATED CO-COMMISSIONING,DOVERCOURT SURGERY,30122141,"1,392.36 "
Department of Health,NHS Sheffield CCG,31/12/2019,C&M-PMS PCO Other,PRC DELEGATED CO-COMMISSIONING,DOVERCOURT SURGERY,30122141,536.10 
Department of Health,NHS Sheffield CCG,31/12/2019,C&M-PMS PCO Seniority,PRC DELEGATED CO-COMMISSIONING,DOVERCOURT SURGERY,30122141,"1,127.85 "
Department of Health,NHS Sheffield CCG,31/12/2019,C&M-PMS Prem Actual Rent,PRC DELEGATED CO-COMMISSIONING,DOVERCOURT SURGERY,30122141,"12,400.00 "
Department of Health,NHS Sheffield CCG,31/12/2019,C&M-PMS Prem Notional Rent,PRC DELEGATED CO-COMMISSIONING,DOVERCOURT SURGERY,30122141,"1,708.33 "
Department of Health,NHS Sheffield CCG,31/12/2019,C&M-PMS QOF Aspiration,PRC DELEGATED CO-COMMISSIONING,DOVERCOURT SURGERY,30122141,"7,675.00 "
Department of Health,NHS Sheffield CCG,31/12/2019,C&M-PMS Contract Value,PRC DELEGATED CO-COMMISSIONING,DR MEHROTRA & PARTNER,30122143,"26,575.18 "
Department of Health,NHS Sheffield CCG,31/12/2019,C&M-PMS PCN DES Participation,PRC DELEGATED CO-COMMISSIONING,DR MEHROTRA & PARTNER,30122143,501.42 
Department of Health,NHS Sheffield CCG,31/12/2019,C&M-PMS PCO Other,PRC DELEGATED CO-COMMISSIONING,DR MEHROTRA & PARTNER,30122143,237.80 
Department of Health,NHS Sheffield CCG,31/12/2019,C&M-PMS PCO Seniority,PRC DELEGATED CO-COMMISSIONING,DR MEHROTRA & PARTNER,30122143,446.56 
Department of Health,NHS Sheffield CCG,31/12/2019,C&M-PMS Prem Actual Rent,PRC DELEGATED CO-COMMISSIONING,DR MEHROTRA & PARTNER,30122143,"2,650.00 "
Department of Health,NHS Sheffield CCG,31/12/2019,C&M-PMS Prem Notional Rent,PRC DELEGATED CO-COMMISSIONING,DR MEHROTRA & PARTNER,30122143,"5,157.29 "
Department of Health,NHS Sheffield CCG,31/12/2019,C&M-PMS Prem Rates,PRC DELEGATED CO-COMMISSIONING,DR MEHROTRA & PARTNER,30122143,"1,606.00 "
Department of Health,NHS Sheffield CCG,31/12/2019,C&M-PMS QOF Aspiration,PRC DELEGATED CO-COMMISSIONING,DR MEHROTRA & PARTNER,30122143,"2,763.65 "
Department of Health,NHS Sheffield CCG,31/12/2019,C&M-PMS Contract Value,PRC DELEGATED CO-COMMISSIONING,DUNNINC ROAD SURGERY,30122146,"23,890.16 "
Department of Health,NHS Sheffield CCG,31/12/2019,C&M-PMS PCN DES Participation,PRC DELEGATED CO-COMMISSIONING,DUNNINC ROAD SURGERY,30122146,448.76 
Department of Health,NHS Sheffield CCG,31/12/2019,C&M-PMS PCO Seniority,PRC DELEGATED CO-COMMISSIONING,DUNNINC ROAD SURGERY,30122146,"1,294.87 "
Department of Health,NHS Sheffield CCG,31/12/2019,C&M-PMS Prem Notional Rent,PRC DELEGATED CO-COMMISSIONING,DUNNINC ROAD SURGERY,30122146,"1,695.83 "
Department of Health,NHS Sheffield CCG,31/12/2019,C&M-PMS QOF Aspiration,PRC DELEGATED CO-COMMISSIONING,DUNNINC ROAD SURGERY,30122146,"2,054.91 "
Department of Health,NHS Sheffield CCG,31/12/2019,C&M-PMS Contract Value,PRC DELEGATED CO-COMMISSIONING,DYKES HALL MEDICAL CENTRE,30122148,"73,074.51 "
Department of Health,NHS Sheffield CCG,31/12/2019,C&M-PMS DES Extended Hours Access,PRC DELEGATED CO-COMMISSIONING,DYKES HALL MEDICAL CENTRE,30122148,"4,412.49 "
Department of Health,NHS Sheffield CCG,31/12/2019,C&M-PMS DES Learn Dsblty Hlth Chk,PRC DELEGATED CO-COMMISSIONING,DYKES HALL MEDICAL CENTRE,30122148,"2,240.00 "
Department of Health,NHS Sheffield CCG,31/12/2019,C&M-PMS Out of Hours Opt Outs,PRC DELEGATED CO-COMMISSIONING,DYKES HALL MEDICAL CENTRE,30122148,35.76 
Department of Health,NHS Sheffield CCG,31/12/2019,C&M-PMS PCN DES Clinical Director,PRC DELEGATED CO-COMMISSIONING,DYKES HALL MEDICAL CENTRE,30122148,"2,063.71 "
Department of Health,NHS Sheffield CCG,31/12/2019,C&M-PMS PCN DES PCN support,LOCAL ENHANCED SERVICES,DYKES HALL MEDICAL CENTRE,30122148,"4,516.88 "
Department of Health,NHS Sheffield CCG,31/12/2019,C&M-PMS PCN DES Participation,PRC DELEGATED CO-COMMISSIONING,DYKES HALL MEDICAL CENTRE,30122148,"1,386.86 "
Department of Health,NHS Sheffield CCG,31/12/2019,C&M-PMS PCO Seniority,PRC DELEGATED CO-COMMISSIONING,DYKES HALL MEDICAL CENTRE,30122148,"1,551.24 "
Department of Health,NHS Sheffield CCG,31/12/2019,C&M-PMS Prem Notional Rent,PRC DELEGATED CO-COMMISSIONING,DYKES HALL MEDICAL CENTRE,30122148,"5,377.08 "
Department of Health,NHS Sheffield CCG,31/12/2019,C&M-PMS QOF Aspiration,PRC DELEGATED CO-COMMISSIONING,DYKES HALL MEDICAL CENTRE,30122148,"8,323.49 "
Department of Health,NHS Sheffield CCG,31/12/2019,C&M-PMS Contract Value,PRC DELEGATED CO-COMMISSIONING,EAST BANK MEDICAL CENTRE,30122150,"49,348.01 "
Department of Health,NHS Sheffield CCG,31/12/2019,C&M-PMS PCN DES Participation,PRC DELEGATED CO-COMMISSIONING,EAST BANK MEDICAL CENTRE,30122150,914.08 
Department of Health,NHS Sheffield CCG,31/12/2019,C&M-PMS PCO Seniority,PRC DELEGATED CO-COMMISSIONING,EAST BANK MEDICAL CENTRE,30122150,832.41 
Department of Health,NHS Sheffield CCG,31/12/2019,C&M-PMS Prem Notional Rent,PRC DELEGATED CO-COMMISSIONING,EAST BANK MEDICAL CENTRE,30122150,"10,583.33 "
Department of Health,NHS Sheffield CCG,31/12/2019,C&M-PMS Prem Rates,PRC DELEGATED CO-COMMISSIONING,EAST BANK MEDICAL CENTRE,30122150,"2,898.00 "
Department of Health,NHS Sheffield CCG,31/12/2019,C&M-PMS QOF Aspiration,PRC DELEGATED CO-COMMISSIONING,EAST BANK MEDICAL CENTRE,30122150,"5,026.31 "
Department of Health,NHS Sheffield CCG,31/12/2019,C&M-PMS Contract Value,PRC DELEGATED CO-COMMISSIONING,FIRTH PARK SURGERY,30122151,"74,885.12 "
Department of Health,NHS Sheffield CCG,31/12/2019,C&M-PMS DES Learn Dsblty Hlth Chk,PRC DELEGATED CO-COMMISSIONING,FIRTH PARK SURGERY,30122151,"1,820.00 "
Department of Health,NHS Sheffield CCG,31/12/2019,C&M-PMS Out of Hours Opt Outs,PRC DELEGATED CO-COMMISSIONING,FIRTH PARK SURGERY,30122151,23.41 
Department of Health,NHS Sheffield CCG,31/12/2019,C&M-PMS PCN DES Participation,PRC DELEGATED CO-COMMISSIONING,FIRTH PARK SURGERY,30122151,"1,468.51 "
Department of Health,NHS Sheffield CCG,31/12/2019,C&M-PMS PCO Seniority,PRC DELEGATED CO-COMMISSIONING,FIRTH PARK SURGERY,30122151,"2,008.59 "
Department of Health,NHS Sheffield CCG,31/12/2019,C&M-PMS Prem Notional Rent,PRC DELEGATED CO-COMMISSIONING,FIRTH PARK SURGERY,30122151,"4,500.00 "
Department of Health,NHS Sheffield CCG,31/12/2019,C&M-PMS Prem Rates,PRC DELEGATED CO-COMMISSIONING,FIRTH PARK SURGERY,30122151,"1,360.00 "
Department of Health,NHS Sheffield CCG,31/12/2019,C&M-PMS QOF Aspiration,PRC DELEGATED CO-COMMISSIONING,FIRTH PARK SURGERY,30122151,"7,493.92 "
Department of Health,NHS Sheffield CCG,31/12/2019,C&M-PMS Contract Value,PRC DELEGATED CO-COMMISSIONING,FALKLAND HOUSE,30122153,"26,085.22 "
Department of Health,NHS Sheffield CCG,31/12/2019,C&M-PMS Out of Hours Opt Outs,PRC DELEGATED CO-COMMISSIONING,FALKLAND HOUSE,30122153,2.72 
Department of Health,NHS Sheffield CCG,31/12/2019,C&M-PMS PCN DES Participation,PRC DELEGATED CO-COMMISSIONING,FALKLAND HOUSE,30122153,495.54 
Department of Health,NHS Sheffield CCG,31/12/2019,C&M-PMS PCO Other,PRC DELEGATED CO-COMMISSIONING,FALKLAND HOUSE,30122153,276.40 
Department of Health,NHS Sheffield CCG,31/12/2019,C&M-PMS PCO Seniority,PRC DELEGATED CO-COMMISSIONING,FALKLAND HOUSE,30122153,"1,358.65 "
Department of Health,NHS Sheffield CCG,31/12/2019,C&M-PMS Prem Notional Rent,PRC DELEGATED CO-COMMISSIONING,FALKLAND HOUSE,30122153,"1,866.67 "
Department of Health,NHS Sheffield CCG,31/12/2019,C&M-PMS Prem Rates,PRC DELEGATED CO-COMMISSIONING,FALKLAND HOUSE,30122153,773.00 
Department of Health,NHS Sheffield CCG,31/12/2019,C&M-PMS QOF Aspiration,PRC DELEGATED CO-COMMISSIONING,FALKLAND HOUSE,30122153,"2,925.24 "
Department of Health,NHS Sheffield CCG,31/12/2019,C&M-PMS Contract Value,PRC DELEGATED CO-COMMISSIONING,GLEADLESS MEDICAL CENTRE,30122155,"69,304.42 "
Department of Health,NHS Sheffield CCG,31/12/2019,C&M-PMS DES Learn Dsblty Hlth Chk,PRC DELEGATED CO-COMMISSIONING,GLEADLESS MEDICAL CENTRE,30122155,"1,540.00 "
Department of Health,NHS Sheffield CCG,31/12/2019,C&M-PMS Out of Hours Opt Outs,PRC DELEGATED CO-COMMISSIONING,GLEADLESS MEDICAL CENTRE,30122155,1.29 
Department of Health,NHS Sheffield CCG,31/12/2019,C&M-PMS PCN DES Participation,PRC DELEGATED CO-COMMISSIONING,GLEADLESS MEDICAL CENTRE,30122155,"1,300.70 "
Department of Health,NHS Sheffield CCG,31/12/2019,C&M-PMS PCO Other,PRC DELEGATED CO-COMMISSIONING,GLEADLESS MEDICAL CENTRE,30122155,551.40 
Department of Health,NHS Sheffield CCG,31/12/2019,C&M-PMS PCO Seniority,PRC DELEGATED CO-COMMISSIONING,GLEADLESS MEDICAL CENTRE,30122155,"2,715.28 "
Department of Health,NHS Sheffield CCG,31/12/2019,C&M-PMS Prem Notional Rent,PRC DELEGATED CO-COMMISSIONING,GLEADLESS MEDICAL CENTRE,30122155,"6,750.00 "
Department of Health,NHS Sheffield CCG,31/12/2019,C&M-PMS Prem Rates,PRC DELEGATED CO-COMMISSIONING,GLEADLESS MEDICAL CENTRE,30122155,"1,657.00 "
Department of Health,NHS Sheffield CCG,31/12/2019,C&M-PMS QOF Aspiration,PRC DELEGATED CO-COMMISSIONING,GLEADLESS MEDICAL CENTRE,30122155,"7,710.90 "
Department of Health,NHS Sheffield CCG,31/12/2019,C&M-PMS Contract Value,PRC DELEGATED CO-COMMISSIONING,HACKENTHORPE MEDICAL CENTRE,30122157,"49,166.53 "
Department of Health,NHS Sheffield CCG,31/12/2019,C&M-PMS DES Learn Dsblty Hlth Chk,PRC DELEGATED CO-COMMISSIONING,HACKENTHORPE MEDICAL CENTRE,30122157,980.00 
Department of Health,NHS Sheffield CCG,31/12/2019,C&M-PMS PCN DES Participation,PRC DELEGATED CO-COMMISSIONING,HACKENTHORPE MEDICAL CENTRE,30122157,926.86 
Department of Health,NHS Sheffield CCG,31/12/2019,C&M-PMS PCO Locum Adop/Pat/Mat,PRC DELEGATED CO-COMMISSIONING,HACKENTHORPE MEDICAL CENTRE,30122157,"19,352.36 "
Department of Health,NHS Sheffield CCG,31/12/2019,C&M-PMS PCO Other,PRC DELEGATED CO-COMMISSIONING,HACKENTHORPE MEDICAL CENTRE,30122157,435.20 
Department of Health,NHS Sheffield CCG,31/12/2019,C&M-PMS PCO Seniority,PRC DELEGATED CO-COMMISSIONING,HACKENTHORPE MEDICAL CENTRE,30122157,"1,056.60 "
Department of Health,NHS Sheffield CCG,31/12/2019,C&M-PMS Prem Notional Rent,PRC DELEGATED CO-COMMISSIONING,HACKENTHORPE MEDICAL CENTRE,30122157,"5,116.67 "
Department of Health,NHS Sheffield CCG,31/12/2019,C&M-PMS Prem Rates,PRC DELEGATED CO-COMMISSIONING,HACKENTHORPE MEDICAL CENTRE,30122157,"1,363.00 "
Department of Health,NHS Sheffield CCG,31/12/2019,C&M-PMS Prem Water Rates,PRC DELEGATED CO-COMMISSIONING,HACKENTHORPE MEDICAL CENTRE,30122157,223.02 
Department of Health,NHS Sheffield CCG,31/12/2019,C&M-PMS QOF Aspiration,PRC DELEGATED CO-COMMISSIONING,HACKENTHORPE MEDICAL CENTRE,30122157,"6,528.39 "
Department of Health,NHS Sheffield CCG,31/12/2019,C&M-PMS Contract Value,PRC DELEGATED CO-COMMISSIONING,JAUNTY SPRINGS HEALTH CENTRE,30122159,"31,192.54 "
Department of Health,NHS Sheffield CCG,31/12/2019,C&M-PMS DES Extended Hours Access,PRC DELEGATED CO-COMMISSIONING,JAUNTY SPRINGS HEALTH CENTRE,30122159,"4,210.64 "
Department of Health,NHS Sheffield CCG,31/12/2019,C&M-PMS DES Learn Dsblty Hlth Chk,PRC DELEGATED CO-COMMISSIONING,JAUNTY SPRINGS HEALTH CENTRE,30122159,420.00 
Department of Health,NHS Sheffield CCG,31/12/2019,C&M-PMS Out of Hours Opt Outs,PRC DELEGATED CO-COMMISSIONING,JAUNTY SPRINGS HEALTH CENTRE,30122159,0.17 
Department of Health,NHS Sheffield CCG,31/12/2019,C&M-PMS PCN DES Clinical Director,PRC DELEGATED CO-COMMISSIONING,JAUNTY SPRINGS HEALTH CENTRE,30122159,"1,969.31 "
Department of Health,NHS Sheffield CCG,31/12/2019,C&M-PMS PCN DES PCN support,LOCAL ENHANCED SERVICES,JAUNTY SPRINGS HEALTH CENTRE,30122159,"4,310.25 "
Department of Health,NHS Sheffield CCG,31/12/2019,C&M-PMS PCN DES Participation,PRC DELEGATED CO-COMMISSIONING,JAUNTY SPRINGS HEALTH CENTRE,30122159,583.08 
Department of Health,NHS Sheffield CCG,31/12/2019,C&M-PMS PCO Other,PRC DELEGATED CO-COMMISSIONING,JAUNTY SPRINGS HEALTH CENTRE,30122159,263.60 
Department of Health,NHS Sheffield CCG,31/12/2019,C&M-PMS PCO Seniority,PRC DELEGATED CO-COMMISSIONING,JAUNTY SPRINGS HEALTH CENTRE,30122159,669.32 
Department of Health,NHS Sheffield CCG,31/12/2019,C&M-PMS Prem Notional Rent,PRC DELEGATED CO-COMMISSIONING,JAUNTY SPRINGS HEALTH CENTRE,30122159,"3,208.33 "
Department of Health,NHS Sheffield CCG,31/12/2019,C&M-PMS Prem Rates,PRC DELEGATED CO-COMMISSIONING,JAUNTY SPRINGS HEALTH CENTRE,30122159,710.00 
Department of Health,NHS Sheffield CCG,31/12/2019,C&M-PMS QOF Aspiration,PRC DELEGATED CO-COMMISSIONING,JAUNTY SPRINGS HEALTH CENTRE,30122159,"4,020.11 "
Department of Health,NHS Sheffield CCG,31/12/2019,C&M-PMS Contract Value,PRC DELEGATED CO-COMMISSIONING,MEADOWHEAD GROUP PRACTICE,30122161,"74,447.56 "
Department of Health,NHS Sheffield CCG,31/12/2019,C&M-PMS DES Learn Dsblty Hlth Chk,PRC DELEGATED CO-COMMISSIONING,MEADOWHEAD GROUP PRACTICE,30122161,140.00 
Department of Health,NHS Sheffield CCG,31/12/2019,C&M-PMS Out of Hours Opt Outs,PRC DELEGATED CO-COMMISSIONING,MEADOWHEAD GROUP PRACTICE,30122161,20.35 
Department of Health,NHS Sheffield CCG,31/12/2019,C&M-PMS PCN DES Participation,PRC DELEGATED CO-COMMISSIONING,MEADOWHEAD GROUP PRACTICE,30122161,"1,403.48 "
Department of Health,NHS Sheffield CCG,31/12/2019,C&M-PMS PCO Seniority,PRC DELEGATED CO-COMMISSIONING,MEADOWHEAD GROUP PRACTICE,30122161,"2,570.12 "
Department of Health,NHS Sheffield CCG,31/12/2019,C&M-PMS Prem Cost Rent,PRC DELEGATED CO-COMMISSIONING,MEADOWHEAD GROUP PRACTICE,30122161,"3,647.42 "
Department of Health,NHS Sheffield CCG,31/12/2019,C&M-PMS Prem Notional Rent,PRC DELEGATED CO-COMMISSIONING,MEADOWHEAD GROUP PRACTICE,30122161,"3,358.33 "
Department of Health,NHS Sheffield CCG,31/12/2019,C&M-PMS Prem Rates,PRC DELEGATED CO-COMMISSIONING,MEADOWHEAD GROUP PRACTICE,30122161,"1,870.00 "
Department of Health,NHS Sheffield CCG,31/12/2019,C&M-PMS Prem Water Rates,PRC DELEGATED CO-COMMISSIONING,MEADOWHEAD GROUP PRACTICE,30122161,223.24 
Department of Health,NHS Sheffield CCG,31/12/2019,C&M-PMS QOF Aspiration,PRC DELEGATED CO-COMMISSIONING,MEADOWHEAD GROUP PRACTICE,30122161,"9,076.52 "
Department of Health,NHS Sheffield CCG,31/12/2019,C&M-PMS Contract Value,PRC DELEGATED CO-COMMISSIONING,MANCHESTER ROAD SURGERY SHEFFIELD,30122163,"33,108.94 "
Department of Health,NHS Sheffield CCG,31/12/2019,C&M-PMS PCN DES Participation,PRC DELEGATED CO-COMMISSIONING,MANCHESTER ROAD SURGERY SHEFFIELD,30122163,618.32 
Department of Health,NHS Sheffield CCG,31/12/2019,C&M-PMS PCO Seniority,PRC DELEGATED CO-COMMISSIONING,MANCHESTER ROAD SURGERY SHEFFIELD,30122163,878.61 
Department of Health,NHS Sheffield CCG,31/12/2019,C&M-PMS Prem Cost Rent,PRC DELEGATED CO-COMMISSIONING,MANCHESTER ROAD SURGERY SHEFFIELD,30122163,"3,472.17 "
Department of Health,NHS Sheffield CCG,31/12/2019,C&M-PMS Prem Notional Rent,PRC DELEGATED CO-COMMISSIONING,MANCHESTER ROAD SURGERY SHEFFIELD,30122163,442.92 
Department of Health,NHS Sheffield CCG,31/12/2019,C&M-PMS Prem Rates,PRC DELEGATED CO-COMMISSIONING,MANCHESTER ROAD SURGERY SHEFFIELD,30122163,970.00 
Department of Health,NHS Sheffield CCG,31/12/2019,C&M-PMS QOF Aspiration,PRC DELEGATED CO-COMMISSIONING,MANCHESTER ROAD SURGERY SHEFFIELD,30122163,"3,985.36 "
Department of Health,NHS Sheffield CCG,31/12/2019,C&M-PMS Contract Value,PRC DELEGATED CO-COMMISSIONING,MOSBOROUGH HEALTH CENTRE,30122165,"50,263.61 "
Department of Health,NHS Sheffield CCG,31/12/2019,C&M-PMS DES Learn Dsblty Hlth Chk,PRC DELEGATED CO-COMMISSIONING,MOSBOROUGH HEALTH CENTRE,30122165,840.00 
Department of Health,NHS Sheffield CCG,31/12/2019,C&M-PMS PCN DES Participation,PRC DELEGATED CO-COMMISSIONING,MOSBOROUGH HEALTH CENTRE,30122165,927.38 
Department of Health,NHS Sheffield CCG,31/12/2019,C&M-PMS PCO Other,PRC DELEGATED CO-COMMISSIONING,MOSBOROUGH HEALTH CENTRE,30122165,432.20 
Department of Health,NHS Sheffield CCG,31/12/2019,C&M-PMS PCO Seniority,PRC DELEGATED CO-COMMISSIONING,MOSBOROUGH HEALTH CENTRE,30122165,"1,418.01 "
Department of Health,NHS Sheffield CCG,31/12/2019,C&M-PMS Prem Notional Rent,PRC DELEGATED CO-COMMISSIONING,MOSBOROUGH HEALTH CENTRE,30122165,"4,091.67 "
Department of Health,NHS Sheffield CCG,31/12/2019,C&M-PMS Prem Rates,PRC DELEGATED CO-COMMISSIONING,MOSBOROUGH HEALTH CENTRE,30122165,"1,105.00 "
Department of Health,NHS Sheffield CCG,31/12/2019,C&M-PMS QOF Aspiration,PRC DELEGATED CO-COMMISSIONING,MOSBOROUGH HEALTH CENTRE,30122165,"5,736.56 "
Department of Health,NHS Sheffield CCG,31/12/2019,C&M-PMS Contract Value,PRC DELEGATED CO-COMMISSIONING,NETHERGREEN SURGERY,30122167,"63,791.23 "
Department of Health,NHS Sheffield CCG,31/12/2019,C&M-PMS DES Learn Dsblty Hlth Chk,PRC DELEGATED CO-COMMISSIONING,NETHERGREEN SURGERY,30122167,140.00 
Department of Health,NHS Sheffield CCG,31/12/2019,C&M-PMS Out of Hours Opt Outs,PRC DELEGATED CO-COMMISSIONING,NETHERGREEN SURGERY,30122167,4.67 
Department of Health,NHS Sheffield CCG,31/12/2019,C&M-PMS PCN DES Participation,PRC DELEGATED CO-COMMISSIONING,NETHERGREEN SURGERY,30122167,"1,208.31 "
Department of Health,NHS Sheffield CCG,31/12/2019,C&M-PMS PCO Seniority,PRC DELEGATED CO-COMMISSIONING,NETHERGREEN SURGERY,30122167,"2,824.25 "
Department of Health,NHS Sheffield CCG,31/12/2019,C&M-PMS Prem Cost Rent,PRC DELEGATED CO-COMMISSIONING,NETHERGREEN SURGERY,30122167,"5,057.33 "
Department of Health,NHS Sheffield CCG,31/12/2019,C&M-PMS Prem Rates,PRC DELEGATED CO-COMMISSIONING,NETHERGREEN SURGERY,30122167,"1,264.00 "
Department of Health,NHS Sheffield CCG,31/12/2019,C&M-PMS QOF Aspiration,PRC DELEGATED CO-COMMISSIONING,NETHERGREEN SURGERY,30122167,"6,406.79 "
Department of Health,NHS Sheffield CCG,31/12/2019,C&M-PMS Contract Value,PRC DELEGATED CO-COMMISSIONING,OWLTHORPE MEDICAL CENTRE,30122168,(251.13)
Department of Health,NHS Sheffield CCG,31/12/2019,C&M-PMS GP Statutory Levy,PRC DELEGATED CO-COMMISSIONING,OWLTHORPE MEDICAL CENTRE,30122168,(156.63)
Department of Health,NHS Sheffield CCG,31/12/2019,C&M-PMS Out of Hours Opt Outs,PRC DELEGATED CO-COMMISSIONING,OWLTHORPE MEDICAL CENTRE,30122168,"(1,580.74)"
Department of Health,NHS Sheffield CCG,31/12/2019,C&M-PMS Contract Value,PRC DELEGATED CO-COMMISSIONING,OWLTHORPE MEDICAL CENTRE,30122169,"33,441.80 "
Department of Health,NHS Sheffield CCG,31/12/2019,C&M-PMS Out of Hours Opt Outs,PRC DELEGATED CO-COMMISSIONING,OWLTHORPE MEDICAL CENTRE,30122169,11.91 
Department of Health,NHS Sheffield CCG,31/12/2019,C&M-PMS PCN DES Participation,PRC DELEGATED CO-COMMISSIONING,OWLTHORPE MEDICAL CENTRE,30122169,639.06 
Department of Health,NHS Sheffield CCG,31/12/2019,C&M-PMS PCO Other,PRC DELEGATED CO-COMMISSIONING,OWLTHORPE MEDICAL CENTRE,30122169,309.20 
Department of Health,NHS Sheffield CCG,31/12/2019,C&M-PMS Prem Actual Rent,PRC DELEGATED CO-COMMISSIONING,OWLTHORPE MEDICAL CENTRE,30122169,"7,539.58 "
Department of Health,NHS Sheffield CCG,31/12/2019,C&M-PMS Prem Rates,PRC DELEGATED CO-COMMISSIONING,OWLTHORPE MEDICAL CENTRE,30122169,"1,316.00 "
Department of Health,NHS Sheffield CCG,31/12/2019,C&M-PMS QOF Aspiration,PRC DELEGATED CO-COMMISSIONING,OWLTHORPE MEDICAL CENTRE,30122169,"3,873.48 "
Department of Health,NHS Sheffield CCG,31/12/2019,C&M-PMS Contract Value,PRC DELEGATED CO-COMMISSIONING,PAGE HALL MEDICAL CENTRE,30122171,"57,398.70 "
Department of Health,NHS Sheffield CCG,31/12/2019,C&M-PMS Out of Hours Opt Outs,PRC DELEGATED CO-COMMISSIONING,PAGE HALL MEDICAL CENTRE,30122171,20.84 
Department of Health,NHS Sheffield CCG,31/12/2019,C&M-PMS PCN DES Participation,PRC DELEGATED CO-COMMISSIONING,PAGE HALL MEDICAL CENTRE,30122171,"1,083.01 "
Department of Health,NHS Sheffield CCG,31/12/2019,C&M-PMS PCO Other,PRC DELEGATED CO-COMMISSIONING,PAGE HALL MEDICAL CENTRE,30122171,495.10 
Department of Health,NHS Sheffield CCG,31/12/2019,C&M-PMS PCO Seniority,PRC DELEGATED CO-COMMISSIONING,PAGE HALL MEDICAL CENTRE,30122171,"1,675.53 "
Department of Health,NHS Sheffield CCG,31/12/2019,C&M-PMS Prem Notional Rent,PRC DELEGATED CO-COMMISSIONING,PAGE HALL MEDICAL CENTRE,30122171,"4,833.33 "
Department of Health,NHS Sheffield CCG,31/12/2019,C&M-PMS Prem Rates,PRC DELEGATED CO-COMMISSIONING,PAGE HALL MEDICAL CENTRE,30122171,"1,077.00 "
Department of Health,NHS Sheffield CCG,31/12/2019,C&M-PMS Prem Water Rates,PRC DELEGATED CO-COMMISSIONING,PAGE HALL MEDICAL CENTRE,30122171,203.03 
Department of Health,NHS Sheffield CCG,31/12/2019,C&M-PMS QOF Aspiration,PRC DELEGATED CO-COMMISSIONING,PAGE HALL MEDICAL CENTRE,30122171,"4,558.05 "
Department of Health,NHS Sheffield CCG,31/12/2019,C&M-PMS Contract Value,PRC DELEGATED CO-COMMISSIONING,PORTER BROOK MEDICAL CENTRE,30122172,"(6,328.21)"
Department of Health,NHS Sheffield CCG,31/12/2019,C&M-PMS GP Statutory Levy,PRC DELEGATED CO-COMMISSIONING,PORTER BROOK MEDICAL CENTRE,30122172,"(1,047.87)"
Department of Health,NHS Sheffield CCG,31/12/2019,C&M-PMS Out of Hours Opt Outs,PRC DELEGATED CO-COMMISSIONING,PORTER BROOK MEDICAL CENTRE,30122172,"(8,210.37)"
Department of Health,NHS Sheffield CCG,31/12/2019,C&M-PMS Contract Value,PRC DELEGATED CO-COMMISSIONING,PORTER BROOK MEDICAL CENTRE,30122173,"176,064.97 "
Department of Health,NHS Sheffield CCG,31/12/2019,C&M-PMS DES Learn Dsblty Hlth Chk,PRC DELEGATED CO-COMMISSIONING,PORTER BROOK MEDICAL CENTRE,30122173,140.00 
Department of Health,NHS Sheffield CCG,31/12/2019,C&M-PMS Out of Hours Opt Outs,PRC DELEGATED CO-COMMISSIONING,PORTER BROOK MEDICAL CENTRE,30122173,295.37 
Department of Health,NHS Sheffield CCG,31/12/2019,C&M-PMS PCN DES Participation,PRC DELEGATED CO-COMMISSIONING,PORTER BROOK MEDICAL CENTRE,30122173,"3,163.47 "
Department of Health,NHS Sheffield CCG,31/12/2019,C&M-PMS PCO Other,PRC DELEGATED CO-COMMISSIONING,PORTER BROOK MEDICAL CENTRE,30122173,"1,730.30 "
Department of Health,NHS Sheffield CCG,31/12/2019,C&M-PMS PCO Seniority,PRC DELEGATED CO-COMMISSIONING,PORTER BROOK MEDICAL CENTRE,30122173,"5,547.22 "
Department of Health,NHS Sheffield CCG,31/12/2019,C&M-PMS Prem Actual Rent,PRC DELEGATED CO-COMMISSIONING,PORTER BROOK MEDICAL CENTRE,30122173,"32,333.34 "
Department of Health,NHS Sheffield CCG,31/12/2019,C&M-PMS Prem Notional Rent,PRC DELEGATED CO-COMMISSIONING,PORTER BROOK MEDICAL CENTRE,30122173,"9,666.67 "
Department of Health,NHS Sheffield CCG,31/12/2019,C&M-PMS Prem Rates,PRC DELEGATED CO-COMMISSIONING,PORTER BROOK MEDICAL CENTRE,30122173,"2,271.00 "
Department of Health,NHS Sheffield CCG,31/12/2019,C&M-PMS QOF Aspiration,PRC DELEGATED CO-COMMISSIONING,PORTER BROOK MEDICAL CENTRE,30122173,"8,838.31 "
Department of Health,NHS Sheffield CCG,31/12/2019,C&M-PMS Contract Value,PRC DELEGATED CO-COMMISSIONING,RICHMOND MEDICAL CENTRE,30122175,"67,613.83 "
Department of Health,NHS Sheffield CCG,31/12/2019,C&M-PMS DES Learn Dsblty Hlth Chk,PRC DELEGATED CO-COMMISSIONING,RICHMOND MEDICAL CENTRE,30122175,700.00 
Department of Health,NHS Sheffield CCG,31/12/2019,C&M-PMS PCN DES Participation,PRC DELEGATED CO-COMMISSIONING,RICHMOND MEDICAL CENTRE,30122175,"1,271.70 "
Department of Health,NHS Sheffield CCG,31/12/2019,C&M-PMS PCO Other,PRC DELEGATED CO-COMMISSIONING,RICHMOND MEDICAL CENTRE,30122175,561.50 
Department of Health,NHS Sheffield CCG,31/12/2019,C&M-PMS PCO Seniority,PRC DELEGATED CO-COMMISSIONING,RICHMOND MEDICAL CENTRE,30122175,"1,623.30 "
Department of Health,NHS Sheffield CCG,31/12/2019,C&M-PMS Prem Notional Rent,PRC DELEGATED CO-COMMISSIONING,RICHMOND MEDICAL CENTRE,30122175,"4,731.00 "
Department of Health,NHS Sheffield CCG,31/12/2019,C&M-PMS Prem Rates,PRC DELEGATED CO-COMMISSIONING,RICHMOND MEDICAL CENTRE,30122175,"1,259.00 "
Department of Health,NHS Sheffield CCG,31/12/2019,C&M-PMS QOF Aspiration,PRC DELEGATED CO-COMMISSIONING,RICHMOND MEDICAL CENTRE,30122175,"8,208.20 "
Department of Health,NHS Sheffield CCG,31/12/2019,C&M-PMS Contract Value,PRC DELEGATED CO-COMMISSIONING,SELBORNE ROAD MEDICAL CENTRE,30122177,"19,844.72 "
Department of Health,NHS Sheffield CCG,31/12/2019,C&M-PMS DES Learn Dsblty Hlth Chk,PRC DELEGATED CO-COMMISSIONING,SELBORNE ROAD MEDICAL CENTRE,30122177,560.00 
Department of Health,NHS Sheffield CCG,31/12/2019,C&M-PMS Out of Hours Opt Outs,PRC DELEGATED CO-COMMISSIONING,SELBORNE ROAD MEDICAL CENTRE,30122177,14.76 
Department of Health,NHS Sheffield CCG,31/12/2019,C&M-PMS PCN DES Participation,PRC DELEGATED CO-COMMISSIONING,SELBORNE ROAD MEDICAL CENTRE,30122177,369.86 
Department of Health,NHS Sheffield CCG,31/12/2019,C&M-PMS PCO Other,PRC DELEGATED CO-COMMISSIONING,SELBORNE ROAD MEDICAL CENTRE,30122177,205.60 
Department of Health,NHS Sheffield CCG,31/12/2019,C&M-PMS Prem Notional Rent,PRC DELEGATED CO-COMMISSIONING,SELBORNE ROAD MEDICAL CENTRE,30122177,"1,735.42 "
Department of Health,NHS Sheffield CCG,31/12/2019,C&M-PMS Prem Rates,PRC DELEGATED CO-COMMISSIONING,SELBORNE ROAD MEDICAL CENTRE,30122177,601.00 
Department of Health,NHS Sheffield CCG,31/12/2019,C&M-PMS QOF Aspiration,PRC DELEGATED CO-COMMISSIONING,SELBORNE ROAD MEDICAL CENTRE,30122177,"1,995.11 "
Department of Health,NHS Sheffield CCG,31/12/2019,C&M-PMS Contract Value,PRC DELEGATED CO-COMMISSIONING,RUSTLINGS ROAD MEDICAL CENTRE,30122179,"28,425.84 "
Department of Health,NHS Sheffield CCG,31/12/2019,C&M-PMS PCN DES Participation,PRC DELEGATED CO-COMMISSIONING,RUSTLINGS ROAD MEDICAL CENTRE,30122179,527.62 
Department of Health,NHS Sheffield CCG,31/12/2019,C&M-PMS PCO Other,PRC DELEGATED CO-COMMISSIONING,RUSTLINGS ROAD MEDICAL CENTRE,30122179,313.80 
Department of Health,NHS Sheffield CCG,31/12/2019,C&M-PMS PCO Seniority,PRC DELEGATED CO-COMMISSIONING,RUSTLINGS ROAD MEDICAL CENTRE,30122179,"1,295.83 "
Department of Health,NHS Sheffield CCG,31/12/2019,C&M-PMS Prem Notional Rent,PRC DELEGATED CO-COMMISSIONING,RUSTLINGS ROAD MEDICAL CENTRE,30122179,"1,312.50 "
Department of Health,NHS Sheffield CCG,31/12/2019,C&M-PMS QOF Aspiration,PRC DELEGATED CO-COMMISSIONING,RUSTLINGS ROAD MEDICAL CENTRE,30122179,"2,653.37 "
Department of Health,NHS Sheffield CCG,31/12/2019,C&M-PMS Contract Value,PRC DELEGATED CO-COMMISSIONING,SLOAN MEDICAL CENTRE,30122181,"96,026.93 "
Department of Health,NHS Sheffield CCG,31/12/2019,C&M-PMS DES Learn Dsblty Hlth Chk,PRC DELEGATED CO-COMMISSIONING,SLOAN MEDICAL CENTRE,30122181,700.00 
Department of Health,NHS Sheffield CCG,31/12/2019,C&M-PMS PCN DES Participation,PRC DELEGATED CO-COMMISSIONING,SLOAN MEDICAL CENTRE,30122181,"1,809.97 "
Department of Health,NHS Sheffield CCG,31/12/2019,C&M-PMS PCO Locum Adop/Pat/Mat,PRC DELEGATED CO-COMMISSIONING,SLOAN MEDICAL CENTRE,30122181,"7,459.08 "
Department of Health,NHS Sheffield CCG,31/12/2019,C&M-PMS PCO Other,PRC DELEGATED CO-COMMISSIONING,SLOAN MEDICAL CENTRE,30122181,802.90 
Department of Health,NHS Sheffield CCG,31/12/2019,C&M-PMS PCO Seniority,PRC DELEGATED CO-COMMISSIONING,SLOAN MEDICAL CENTRE,30122181,"3,462.54 "
Department of Health,NHS Sheffield CCG,31/12/2019,C&M-PMS Prem Actual Rent,PRC DELEGATED CO-COMMISSIONING,SLOAN MEDICAL CENTRE,30122181,"15,970.83 "
Department of Health,NHS Sheffield CCG,31/12/2019,C&M-PMS Prem Notional Rent,PRC DELEGATED CO-COMMISSIONING,SLOAN MEDICAL CENTRE,30122181,747.50 
Department of Health,NHS Sheffield CCG,31/12/2019,C&M-PMS Prem Rates,PRC DELEGATED CO-COMMISSIONING,SLOAN MEDICAL CENTRE,30122181,"3,423.00 "
Department of Health,NHS Sheffield CCG,31/12/2019,C&M-PMS Prem Water Rates,PRC DELEGATED CO-COMMISSIONING,SLOAN MEDICAL CENTRE,30122181,349.08 
Department of Health,NHS Sheffield CCG,31/12/2019,C&M-PMS QOF Aspiration,PRC DELEGATED CO-COMMISSIONING,SLOAN MEDICAL CENTRE,30122181,"10,003.70 "
Department of Health,NHS Sheffield CCG,31/12/2019,C&M-PMS Contract Value,PRC DELEGATED CO-COMMISSIONING,SOTHALL MEDICAL CENTRE,30122183,"71,918.09 "
Department of Health,NHS Sheffield CCG,31/12/2019,C&M-PMS DES Learn Dsblty Hlth Chk,PRC DELEGATED CO-COMMISSIONING,SOTHALL MEDICAL CENTRE,30122183,560.00 
Department of Health,NHS Sheffield CCG,31/12/2019,C&M-PMS Out of Hours Opt Outs,PRC DELEGATED CO-COMMISSIONING,SOTHALL MEDICAL CENTRE,30122183,15.00 
Department of Health,NHS Sheffield CCG,31/12/2019,C&M-PMS PCN DES Participation,PRC DELEGATED CO-COMMISSIONING,SOTHALL MEDICAL CENTRE,30122183,"1,351.91 "
Department of Health,NHS Sheffield CCG,31/12/2019,C&M-PMS PCO Other,PRC DELEGATED CO-COMMISSIONING,SOTHALL MEDICAL CENTRE,30122183,627.60 
Department of Health,NHS Sheffield CCG,31/12/2019,C&M-PMS PCO Seniority,PRC DELEGATED CO-COMMISSIONING,SOTHALL MEDICAL CENTRE,30122183,"2,030.40 "
Department of Health,NHS Sheffield CCG,31/12/2019,C&M-PMS Prem Notional Rent,PRC DELEGATED CO-COMMISSIONING,SOTHALL MEDICAL CENTRE,30122183,"5,116.67 "
Department of Health,NHS Sheffield CCG,31/12/2019,C&M-PMS Prem Rates,PRC DELEGATED CO-COMMISSIONING,SOTHALL MEDICAL CENTRE,30122183,"1,412.00 "
Department of Health,NHS Sheffield CCG,31/12/2019,C&M-PMS QOF Aspiration,PRC DELEGATED CO-COMMISSIONING,SOTHALL MEDICAL CENTRE,30122183,"8,630.52 "
Department of Health,NHS Sheffield CCG,31/12/2019,C&M-PMS Contract Value,PRC DELEGATED CO-COMMISSIONING,SOUTHEY GREEN MEDICAL CENTRE,30122185,"25,187.78 "
Department of Health,NHS Sheffield CCG,31/12/2019,C&M-PMS DES Learn Dsblty Hlth Chk,PRC DELEGATED CO-COMMISSIONING,SOUTHEY GREEN MEDICAL CENTRE,30122185,560.00 
Department of Health,NHS Sheffield CCG,31/12/2019,C&M-PMS Out of Hours Opt Outs,PRC DELEGATED CO-COMMISSIONING,SOUTHEY GREEN MEDICAL CENTRE,30122185,8.62 
Department of Health,NHS Sheffield CCG,31/12/2019,C&M-PMS PCN DES Participation,PRC DELEGATED CO-COMMISSIONING,SOUTHEY GREEN MEDICAL CENTRE,30122185,475.68 
Department of Health,NHS Sheffield CCG,31/12/2019,C&M-PMS PCO Seniority,PRC DELEGATED CO-COMMISSIONING,SOUTHEY GREEN MEDICAL CENTRE,30122185,787.69 
Department of Health,NHS Sheffield CCG,31/12/2019,C&M-PMS Prem Notional Rent,PRC DELEGATED CO-COMMISSIONING,SOUTHEY GREEN MEDICAL CENTRE,30122185,"3,362.50 "
Department of Health,NHS Sheffield CCG,31/12/2019,C&M-PMS QOF Aspiration,PRC DELEGATED CO-COMMISSIONING,SOUTHEY GREEN MEDICAL CENTRE,30122185,"2,668.69 "
Department of Health,NHS Sheffield CCG,31/12/2019,C&M-PMS Contract Value,PRC DELEGATED CO-COMMISSIONING,UNIVERSITY HEALTH SERVICE,30122187,"(11,798.15)"
Department of Health,NHS Sheffield CCG,31/12/2019,C&M-PMS DES Extended Hours Access,PRC DELEGATED CO-COMMISSIONING,UNIVERSITY HEALTH SERVICE,30122187,"(4,573.92)"
Department of Health,NHS Sheffield CCG,31/12/2019,C&M-PMS GP Statutory Levy,PRC DELEGATED CO-COMMISSIONING,UNIVERSITY HEALTH SERVICE,30122187,"(1,459.68)"
Department of Health,NHS Sheffield CCG,31/12/2019,C&M-PMS Out of Hours Opt Outs,PRC DELEGATED CO-COMMISSIONING,UNIVERSITY HEALTH SERVICE,30122187,"(10,308.61)"
Department of Health,NHS Sheffield CCG,31/12/2019,C&M-PMS PCN DES Clinical Director,PRC DELEGATED CO-COMMISSIONING,UNIVERSITY HEALTH SERVICE,30122187,"(2,139.21)"
Department of Health,NHS Sheffield CCG,31/12/2019,C&M-PMS PCN DES PCN support,LOCAL ENHANCED SERVICES,UNIVERSITY HEALTH SERVICE,30122187,"(4,682.13)"
Department of Health,NHS Sheffield CCG,31/12/2019,C&M-PMS Contract Value,PRC DELEGATED CO-COMMISSIONING,UNIVERSITY HEALTH SERVICE,30122188,"213,199.28 "
Department of Health,NHS Sheffield CCG,31/12/2019,C&M-PMS DES Extended Hours Access,PRC DELEGATED CO-COMMISSIONING,UNIVERSITY HEALTH SERVICE,30122188,"4,573.92 "
Department of Health,NHS Sheffield CCG,31/12/2019,C&M-PMS Out of Hours Opt Outs,PRC DELEGATED CO-COMMISSIONING,UNIVERSITY HEALTH SERVICE,30122188,572.06 
Department of Health,NHS Sheffield CCG,31/12/2019,C&M-PMS PCN DES Clinical Director,PRC DELEGATED CO-COMMISSIONING,UNIVERSITY HEALTH SERVICE,30122188,"2,139.21 "
Department of Health,NHS Sheffield CCG,31/12/2019,C&M-PMS PCN DES PCN support,LOCAL ENHANCED SERVICES,UNIVERSITY HEALTH SERVICE,30122188,"4,682.13 "
Department of Health,NHS Sheffield CCG,31/12/2019,C&M-PMS PCN DES Participation,PRC DELEGATED CO-COMMISSIONING,UNIVERSITY HEALTH SERVICE,30122188,"3,535.52 "
Department of Health,NHS Sheffield CCG,31/12/2019,C&M-PMS PCO Seniority,PRC DELEGATED CO-COMMISSIONING,UNIVERSITY HEALTH SERVICE,30122188,"3,144.58 "
Department of Health,NHS Sheffield CCG,31/12/2019,C&M-PMS Prem Notional Rent,PRC DELEGATED CO-COMMISSIONING,UNIVERSITY HEALTH SERVICE,30122188,"15,833.33 "
Department of Health,NHS Sheffield CCG,31/12/2019,C&M-PMS QOF Aspiration,PRC DELEGATED CO-COMMISSIONING,UNIVERSITY HEALTH SERVICE,30122188,"4,031.41 "
Department of Health,NHS Sheffield CCG,31/12/2019,C&M-PMS Contract Value,PRC DELEGATED CO-COMMISSIONING,UPWELL STREET SURGERY,30122190,"37,734.18 "
Department of Health,NHS Sheffield CCG,31/12/2019,C&M-PMS Out of Hours Opt Outs,PRC DELEGATED CO-COMMISSIONING,UPWELL STREET SURGERY,30122190,17.15 
Department of Health,NHS Sheffield CCG,31/12/2019,C&M-PMS PCN DES Participation,PRC DELEGATED CO-COMMISSIONING,UPWELL STREET SURGERY,30122190,713.41 
Department of Health,NHS Sheffield CCG,31/12/2019,C&M-PMS PCO Other,PRC DELEGATED CO-COMMISSIONING,UPWELL STREET SURGERY,30122190,324.80 
Department of Health,NHS Sheffield CCG,31/12/2019,C&M-PMS PCO Seniority,PRC DELEGATED CO-COMMISSIONING,UPWELL STREET SURGERY,30122190,809.71 
Department of Health,NHS Sheffield CCG,31/12/2019,C&M-PMS Prem Notional Rent,PRC DELEGATED CO-COMMISSIONING,UPWELL STREET SURGERY,30122190,"8,137.50 "
Department of Health,NHS Sheffield CCG,31/12/2019,C&M-PMS Prem Rates,PRC DELEGATED CO-COMMISSIONING,UPWELL STREET SURGERY,30122190,"1,340.00 "
Department of Health,NHS Sheffield CCG,31/12/2019,C&M-PMS Prem Water Rates,PRC DELEGATED CO-COMMISSIONING,UPWELL STREET SURGERY,30122190,145.74 
Department of Health,NHS Sheffield CCG,31/12/2019,C&M-PMS QOF Aspiration,PRC DELEGATED CO-COMMISSIONING,UPWELL STREET SURGERY,30122190,"4,056.38 "
Department of Health,NHS Sheffield CCG,31/12/2019,C&M-PMS Contract Value,PRC DELEGATED CO-COMMISSIONING,VALLEY MEDICAL CENTRE,30122192,"79,516.07 "
Department of Health,NHS Sheffield CCG,31/12/2019,C&M-PMS DES Extended Hours Access,PRC DELEGATED CO-COMMISSIONING,VALLEY MEDICAL CENTRE,30122192,"2,533.07 "
Department of Health,NHS Sheffield CCG,31/12/2019,C&M-PMS DES Learn Dsblty Hlth Chk,PRC DELEGATED CO-COMMISSIONING,VALLEY MEDICAL CENTRE,30122192,140.00 
Department of Health,NHS Sheffield CCG,31/12/2019,C&M-PMS PCN DES Clinical Director,PRC DELEGATED CO-COMMISSIONING,VALLEY MEDICAL CENTRE,30122192,"1,184.71 "
Department of Health,NHS Sheffield CCG,31/12/2019,C&M-PMS PCN DES PCN support,LOCAL ENHANCED SERVICES,VALLEY MEDICAL CENTRE,30122192,"2,593.00 "
Department of Health,NHS Sheffield CCG,31/12/2019,C&M-PMS PCN DES Participation,PRC DELEGATED CO-COMMISSIONING,VALLEY MEDICAL CENTRE,30122192,"1,492.89 "
Department of Health,NHS Sheffield CCG,31/12/2019,C&M-PMS PCO Seniority,PRC DELEGATED CO-COMMISSIONING,VALLEY MEDICAL CENTRE,30122192,"4,215.87 "
Department of Health,NHS Sheffield CCG,31/12/2019,C&M-PMS Prem Actual Rent,PRC DELEGATED CO-COMMISSIONING,VALLEY MEDICAL CENTRE,30122192,"25,468.75 "
Department of Health,NHS Sheffield CCG,31/12/2019,C&M-PMS Prem Rates,PRC DELEGATED CO-COMMISSIONING,VALLEY MEDICAL CENTRE,30122192,"1,664.00 "
Department of Health,NHS Sheffield CCG,31/12/2019,C&M-PMS QOF Aspiration,PRC DELEGATED CO-COMMISSIONING,VALLEY MEDICAL CENTRE,30122192,"8,453.91 "
Department of Health,NHS Sheffield CCG,31/12/2019,C&M-PMS Contract Value,PRC DELEGATED CO-COMMISSIONING,WOODHOUSE HEALTH CENTRE,30122194,"101,457.37 "
Department of Health,NHS Sheffield CCG,31/12/2019,C&M-PMS DES Learn Dsblty Hlth Chk,PRC DELEGATED CO-COMMISSIONING,WOODHOUSE HEALTH CENTRE,30122194,280.00 
Department of Health,NHS Sheffield CCG,31/12/2019,C&M-PMS Out of Hours Opt Outs,PRC DELEGATED CO-COMMISSIONING,WOODHOUSE HEALTH CENTRE,30122194,8.54 
Department of Health,NHS Sheffield CCG,31/12/2019,C&M-PMS PCN DES Participation,PRC DELEGATED CO-COMMISSIONING,WOODHOUSE HEALTH CENTRE,30122194,"1,906.58 "
Department of Health,NHS Sheffield CCG,31/12/2019,C&M-PMS PCO Other,PRC DELEGATED CO-COMMISSIONING,WOODHOUSE HEALTH CENTRE,30122194,746.40 
Department of Health,NHS Sheffield CCG,31/12/2019,C&M-PMS PCO Seniority,PRC DELEGATED CO-COMMISSIONING,WOODHOUSE HEALTH CENTRE,30122194,"4,759.06 "
Department of Health,NHS Sheffield CCG,31/12/2019,C&M-PMS Prem Notional Rent,PRC DELEGATED CO-COMMISSIONING,WOODHOUSE HEALTH CENTRE,30122194,"6,338.58 "
Department of Health,NHS Sheffield CCG,31/12/2019,C&M-PMS Prem Rates,PRC DELEGATED CO-COMMISSIONING,WOODHOUSE HEALTH CENTRE,30122194,"1,757.00 "
Department of Health,NHS Sheffield CCG,31/12/2019,C&M-PMS QOF Aspiration,PRC DELEGATED CO-COMMISSIONING,WOODHOUSE HEALTH CENTRE,30122194,"13,912.30 "
Department of Health,NHS Sheffield CCG,31/12/2019,C&M-PMS Contract Value,PRC DELEGATED CO-COMMISSIONING,WINCOBANK MEDICAL CENTRE,30122196,"63,053.05 "
Department of Health,NHS Sheffield CCG,31/12/2019,C&M-PMS DES Learn Dsblty Hlth Chk,PRC DELEGATED CO-COMMISSIONING,WINCOBANK MEDICAL CENTRE,30122196,140.00 
Department of Health,NHS Sheffield CCG,31/12/2019,C&M-PMS Out of Hours Opt Outs,PRC DELEGATED CO-COMMISSIONING,WINCOBANK MEDICAL CENTRE,30122196,14.95 
Department of Health,NHS Sheffield CCG,31/12/2019,C&M-PMS PCN DES Participation,PRC DELEGATED CO-COMMISSIONING,WINCOBANK MEDICAL CENTRE,30122196,"1,179.69 "
Department of Health,NHS Sheffield CCG,31/12/2019,C&M-PMS PCO Other,PRC DELEGATED CO-COMMISSIONING,WINCOBANK MEDICAL CENTRE,30122196,"4,862.00 "
Department of Health,NHS Sheffield CCG,31/12/2019,C&M-PMS PCO Seniority,PRC DELEGATED CO-COMMISSIONING,WINCOBANK MEDICAL CENTRE,30122196,809.71 
Department of Health,NHS Sheffield CCG,31/12/2019,C&M-PMS Prem Healthcentre Rent,PRC DELEGATED CO-COMMISSIONING,WINCOBANK MEDICAL CENTRE,30122196,"45,121.79 "
Department of Health,NHS Sheffield CCG,31/12/2019,C&M-PMS Prem Rates,PRC DELEGATED CO-COMMISSIONING,WINCOBANK MEDICAL CENTRE,30122196,"34,524.00 "
Department of Health,NHS Sheffield CCG,31/12/2019,C&M-PMS QOF Aspiration,PRC DELEGATED CO-COMMISSIONING,WINCOBANK MEDICAL CENTRE,30122196,"6,283.36 "
Department of Health,NHS Sheffield CCG,31/12/2019,C&M-PMS Contract Value,PRC DELEGATED CO-COMMISSIONING,FOXHILL MEDICAL CENTRE SHEFFIELD,30122198,"51,898.29 "
Department of Health,NHS Sheffield CCG,31/12/2019,C&M-PMS DES Learn Dsblty Hlth Chk,PRC DELEGATED CO-COMMISSIONING,FOXHILL MEDICAL CENTRE SHEFFIELD,30122198,280.00 
Department of Health,NHS Sheffield CCG,31/12/2019,C&M-PMS PCN DES Participation,PRC DELEGATED CO-COMMISSIONING,FOXHILL MEDICAL CENTRE SHEFFIELD,30122198,977.79 
Department of Health,NHS Sheffield CCG,31/12/2019,C&M-PMS PCO Other,PRC DELEGATED CO-COMMISSIONING,FOXHILL MEDICAL CENTRE SHEFFIELD,30122198,400.60 
Department of Health,NHS Sheffield CCG,31/12/2019,C&M-PMS PCO Seniority,PRC DELEGATED CO-COMMISSIONING,FOXHILL MEDICAL CENTRE SHEFFIELD,30122198,"2,125.73 "
Department of Health,NHS Sheffield CCG,31/12/2019,C&M-PMS Prem Healthcentre Rent,PRC DELEGATED CO-COMMISSIONING,FOXHILL MEDICAL CENTRE SHEFFIELD,30122198,"46,751.17 "
Department of Health,NHS Sheffield CCG,31/12/2019,C&M-PMS QOF Aspiration,PRC DELEGATED CO-COMMISSIONING,FOXHILL MEDICAL CENTRE SHEFFIELD,30122198,"5,618.87 "
Department of Health,NHS Sheffield CCG,31/12/2019,C&M-PMS Contract Value,PRC DELEGATED CO-COMMISSIONING,FORGE HEALTH GROUP,30122199,(213.91)
Department of Health,NHS Sheffield CCG,31/12/2019,C&M-PMS GP Statutory Levy,PRC DELEGATED CO-COMMISSIONING,FORGE HEALTH GROUP,30122199,(509.43)
Department of Health,NHS Sheffield CCG,31/12/2019,C&M-PMS Out of Hours Opt Outs,PRC DELEGATED CO-COMMISSIONING,FORGE HEALTH GROUP,30122199,"(5,630.63)"
Department of Health,NHS Sheffield CCG,31/12/2019,C&M-PMS Contract Value,PRC DELEGATED CO-COMMISSIONING,FORGE HEALTH GROUP,30122200,"119,479.85 "
Department of Health,NHS Sheffield CCG,31/12/2019,C&M-PMS DES Extended Hours Access,PRC DELEGATED CO-COMMISSIONING,FORGE HEALTH GROUP,30122200,"6,869.48 "
Department of Health,NHS Sheffield CCG,31/12/2019,C&M-PMS DES Learn Dsblty Hlth Chk,PRC DELEGATED CO-COMMISSIONING,FORGE HEALTH GROUP,30122200,"1,120.00 "
Department of Health,NHS Sheffield CCG,31/12/2019,C&M-PMS Out of Hours Opt Outs,PRC DELEGATED CO-COMMISSIONING,FORGE HEALTH GROUP,30122200,10.15 
Department of Health,NHS Sheffield CCG,31/12/2019,C&M-PMS PCN DES Clinical Director,PRC DELEGATED CO-COMMISSIONING,FORGE HEALTH GROUP,30122200,"3,212.84 "
Department of Health,NHS Sheffield CCG,31/12/2019,C&M-PMS PCN DES PCN support,LOCAL ENHANCED SERVICES,FORGE HEALTH GROUP,30122200,"7,032.00 "
Department of Health,NHS Sheffield CCG,31/12/2019,C&M-PMS PCN DES Participation,PRC DELEGATED CO-COMMISSIONING,FORGE HEALTH GROUP,30122200,"2,225.15 "
Department of Health,NHS Sheffield CCG,31/12/2019,C&M-PMS PCO Locum Adop/Pat/Mat,PRC DELEGATED CO-COMMISSIONING,FORGE HEALTH GROUP,30122200,"1,316.28 "
Department of Health,NHS Sheffield CCG,31/12/2019,C&M-PMS PCO Seniority,PRC DELEGATED CO-COMMISSIONING,FORGE HEALTH GROUP,30122200,979.30 
Department of Health,NHS Sheffield CCG,31/12/2019,C&M-PMS Prem Healthcentre Rent,PRC DELEGATED CO-COMMISSIONING,FORGE HEALTH GROUP,30122200,"32,899.56 "
Department of Health,NHS Sheffield CCG,31/12/2019,C&M-PMS Prem Notional Rent,PRC DELEGATED CO-COMMISSIONING,FORGE HEALTH GROUP,30122200,"9,650.00 "
Department of Health,NHS Sheffield CCG,31/12/2019,C&M-PMS Prem Rates,PRC DELEGATED CO-COMMISSIONING,FORGE HEALTH GROUP,30122200,"1,990.00 "
Department of Health,NHS Sheffield CCG,31/12/2019,C&M-PMS QOF Aspiration,PRC DELEGATED CO-COMMISSIONING,FORGE HEALTH GROUP,30122200,"11,432.76 "
Department of Health,NHS Sheffield CCG,31/12/2019,C&M-APMS Contract Value,PRC DELEGATED CO-COMMISSIONING,CLOVER CITY PRACTICE,30122202,"28,309.02 "
Department of Health,NHS Sheffield CCG,31/12/2019,C&M-APMS PCN DES Participation,PRC DELEGATED CO-COMMISSIONING,CLOVER CITY PRACTICE,30122202,529.90 
Department of Health,NHS Sheffield CCG,31/12/2019,C&M-PMS QOF Aspiration,PRC DELEGATED CO-COMMISSIONING,CLOVER CITY PRACTICE,30122202,"1,537.57 "
Department of Health,NHS Sheffield CCG,31/12/2019,C&M-PMS Contract Value,PRC DELEGATED CO-COMMISSIONING,WOODSEATS MEDICAL CENTRE,30128218,"78,771.55 "
Department of Health,NHS Sheffield CCG,31/12/2019,C&M-PMS DES Learn Dsblty Hlth Chk,PRC DELEGATED CO-COMMISSIONING,WOODSEATS MEDICAL CENTRE,30128218,"2,380.00 "
Department of Health,NHS Sheffield CCG,31/12/2019,C&M-PMS PCN DES Participation,PRC DELEGATED CO-COMMISSIONING,WOODSEATS MEDICAL CENTRE,30128218,"1,439.13 "
Department of Health,NHS Sheffield CCG,31/12/2019,C&M-PMS PCO Other,PRC DELEGATED CO-COMMISSIONING,WOODSEATS MEDICAL CENTRE,30128218,622.70 
Department of Health,NHS Sheffield CCG,31/12/2019,C&M-PMS PCO Seniority,PRC DELEGATED CO-COMMISSIONING,WOODSEATS MEDICAL CENTRE,30128218,"1,029.00 "
Department of Health,NHS Sheffield CCG,31/12/2019,C&M-PMS Prem Notional Rent,PRC DELEGATED CO-COMMISSIONING,WOODSEATS MEDICAL CENTRE,30128218,"11,666.67 "
Department of Health,NHS Sheffield CCG,31/12/2019,C&M-PMS Prem Rates,PRC DELEGATED CO-COMMISSIONING,WOODSEATS MEDICAL CENTRE,30128218,"3,100.00 "
Department of Health,NHS Sheffield CCG,31/12/2019,C&M-PMS Prem Water Rates,PRC DELEGATED CO-COMMISSIONING,WOODSEATS MEDICAL CENTRE,30128218,207.20 
Department of Health,NHS Sheffield CCG,31/12/2019,C&M-PMS QOF Aspiration,PRC DELEGATED CO-COMMISSIONING,WOODSEATS MEDICAL CENTRE,30128218,"8,242.64 "
Department of Health,NHS Sheffield CCG,31/12/2019,C&M-PMS Contract Value,PRC DELEGATED CO-COMMISSIONING,MANOR & PARK GROUP PRACTICE,30128230,"72,704.78 "
Department of Health,NHS Sheffield CCG,31/12/2019,C&M-PMS DES Learn Dsblty Hlth Chk,PRC DELEGATED CO-COMMISSIONING,MANOR & PARK GROUP PRACTICE,30128230,420.00 
Department of Health,NHS Sheffield CCG,31/12/2019,C&M-PMS Out of Hours Opt Outs,PRC DELEGATED CO-COMMISSIONING,MANOR & PARK GROUP PRACTICE,30128230,84.29 
Department of Health,NHS Sheffield CCG,31/12/2019,C&M-PMS PCN DES Participation,PRC DELEGATED CO-COMMISSIONING,MANOR & PARK GROUP PRACTICE,30128230,"1,445.35 "
Department of Health,NHS Sheffield CCG,31/12/2019,C&M-PMS PCO Locum Adop/Pat/Mat,PRC DELEGATED CO-COMMISSIONING,MANOR & PARK GROUP PRACTICE,30128230,"19,301.62 "
Department of Health,NHS Sheffield CCG,31/12/2019,C&M-PMS PCO Seniority,PRC DELEGATED CO-COMMISSIONING,MANOR & PARK GROUP PRACTICE,30128230,"1,070.91 "
Department of Health,NHS Sheffield CCG,31/12/2019,C&M-PMS Prem Notional Rent,PRC DELEGATED CO-COMMISSIONING,MANOR & PARK GROUP PRACTICE,30128230,"9,050.00 "
Department of Health,NHS Sheffield CCG,31/12/2019,C&M-PMS Prem Rates,PRC DELEGATED CO-COMMISSIONING,MANOR & PARK GROUP PRACTICE,30128230,"1,747.00 "
Department of Health,NHS Sheffield CCG,31/12/2019,C&M-PMS QOF Aspiration,PRC DELEGATED CO-COMMISSIONING,MANOR & PARK GROUP PRACTICE,30128230,"7,420.75 "
Department of Health,NHS Sheffield CCG,31/12/2019,Clinical&Medical-Independent Sector,ACUTE COMMISSIONING,CLAREMONT HOSPITAL,30130713,"29,265.00 "
Department of Health,NHS Sheffield CCG,31/12/2019,Miscellaneous Expenditure (L9),BEREAVEMENT SERVICE,DONCASTER AND BASSETLAW HOSPITALS NHS FOUNDATION TRUST,30130725,(0.55)
Department of Health,NHS Sheffield CCG,31/12/2019,Oth Travel Costs-Car Mileage,BEREAVEMENT SERVICE,DONCASTER AND BASSETLAW HOSPITALS NHS FOUNDATION TRUST,30130725,145.32 
Department of Health,NHS Sheffield CCG,31/12/2019,Other Travel Costs - Car Parking,BEREAVEMENT SERVICE,DONCASTER AND BASSETLAW HOSPITALS NHS FOUNDATION TRUST,30130725,(26.49)
Department of Health,NHS Sheffield CCG,31/12/2019,Seconded-Basic Sal-Staff fm oth org,BEREAVEMENT SERVICE,DONCASTER AND BASSETLAW HOSPITALS NHS FOUNDATION TRUST,30130725,"33,971.71 "
Department of Health,NHS Sheffield CCG,31/12/2019,Seconded-Employer's NHI Costs,BEREAVEMENT SERVICE,DONCASTER AND BASSETLAW HOSPITALS NHS FOUNDATION TRUST,30130725,"4,177.29 "
Department of Health,NHS Sheffield CCG,31/12/2019,Hcare Srv Rec Fdtn Trust-Contract Baseline,ACUTE COMMISSIONING,DONCASTER AND BASSETLAW HOSPITALS NHS FOUNDATION TRUST,30135081,"44,305.00 "
Department of Health,NHS Sheffield CCG,31/12/2019,Cont Care- Adult 100% Fully Funded,CHC ADULT FULLY FUNDED,SOUTH YORKSHIRE HOUSING ASSOCIATION LTD,30135138,"25,500.00 "
Department of Health,NHS Sheffield CCG,31/12/2019,C&M-PMS Contract Value,PRC DELEGATED CO-COMMISSIONING,BIRLEY HEALTH CENTRE,30149600,"64,386.85 "
Department of Health,NHS Sheffield CCG,31/12/2019,C&M-PMS DES Learn Dsblty Hlth Chk,PRC DELEGATED CO-COMMISSIONING,BIRLEY HEALTH CENTRE,30149600,420.00 
Department of Health,NHS Sheffield CCG,31/12/2019,C&M-PMS PCN DES Participation,PRC DELEGATED CO-COMMISSIONING,BIRLEY HEALTH CENTRE,30149600,"1,209.32 "
Department of Health,NHS Sheffield CCG,31/12/2019,C&M-PMS PCO Other,PRC DELEGATED CO-COMMISSIONING,BIRLEY HEALTH CENTRE,30149600,535.90 
Department of Health,NHS Sheffield CCG,31/12/2019,C&M-PMS PCO Seniority,PRC DELEGATED CO-COMMISSIONING,BIRLEY HEALTH CENTRE,30149600,"2,545.49 "
Department of Health,NHS Sheffield CCG,31/12/2019,C&M-PMS Prem Notional Rent,PRC DELEGATED CO-COMMISSIONING,BIRLEY HEALTH CENTRE,30149600,"7,600.58 "
Department of Health,NHS Sheffield CCG,31/12/2019,C&M-PMS Prem Rates,PRC DELEGATED CO-COMMISSIONING,BIRLEY HEALTH CENTRE,30149600,"1,407.00 "
Department of Health,NHS Sheffield CCG,31/12/2019,C&M-PMS QOF Aspiration,PRC DELEGATED CO-COMMISSIONING,BIRLEY HEALTH CENTRE,30149600,"7,981.39 "
Department of Health,NHS Sheffield CCG,31/12/2019,C&M-PMS Contract Value,PRC DELEGATED CO-COMMISSIONING,DR MILNER & PARTNERS,30149602,"76,636.66 "
Department of Health,NHS Sheffield CCG,31/12/2019,C&M-PMS DES Learn Dsblty Hlth Chk,PRC DELEGATED CO-COMMISSIONING,DR MILNER & PARTNERS,30149602,"1,680.00 "
Department of Health,NHS Sheffield CCG,31/12/2019,C&M-PMS Out of Hours Opt Outs,PRC DELEGATED CO-COMMISSIONING,DR MILNER & PARTNERS,30149602,7.01 
Department of Health,NHS Sheffield CCG,31/12/2019,C&M-PMS PCN DES Participation,PRC DELEGATED CO-COMMISSIONING,DR MILNER & PARTNERS,30149602,"1,435.93 "
Department of Health,NHS Sheffield CCG,31/12/2019,C&M-PMS PCO Seniority,PRC DELEGATED CO-COMMISSIONING,DR MILNER & PARTNERS,30149602,"1,238.94 "
Department of Health,NHS Sheffield CCG,31/12/2019,C&M-PMS Prem Actual Rent,PRC DELEGATED CO-COMMISSIONING,DR MILNER & PARTNERS,30149602,"11,382.00 "
Department of Health,NHS Sheffield CCG,31/12/2019,C&M-PMS Prem Notional Rent,PRC DELEGATED CO-COMMISSIONING,DR MILNER & PARTNERS,30149602,"4,462.42 "
Department of Health,NHS Sheffield CCG,31/12/2019,C&M-PMS Prem Rates,PRC DELEGATED CO-COMMISSIONING,DR MILNER & PARTNERS,30149602,"2,593.00 "
Department of Health,NHS Sheffield CCG,31/12/2019,C&M-PMS QOF Aspiration,PRC DELEGATED CO-COMMISSIONING,DR MILNER & PARTNERS,30149602,"6,513.90 "
Department of Health,NHS Sheffield CCG,31/12/2019,C&M-PMS Contract Value,PRC DELEGATED CO-COMMISSIONING,FIRTH PARK SURGERY,30149603,(484.68)
Department of Health,NHS Sheffield CCG,31/12/2019,C&M-PMS GP Statutory Levy,PRC DELEGATED CO-COMMISSIONING,FIRTH PARK SURGERY,30149603,(351.65)
Department of Health,NHS Sheffield CCG,31/12/2019,C&M-PMS Out of Hours Opt Outs,PRC DELEGATED CO-COMMISSIONING,FIRTH PARK SURGERY,30149603,"(3,617.62)"
Department of Health,NHS Sheffield CCG,31/12/2019,Hcare Srv Rec NHS Trust-Contract Baseline,ACUTE COMMISSIONING,UNITED LINCOLNSHIRE HOSPITALS NHS TRUST,30158402,"26,180.60 "
Department of Health,NHS Sheffield CCG,31/12/2019,Clinical&Medical-Independent Sector,MENTAL HEALTH CONTRACTS,SUSASH GB LTD T/A EAGLE HOUSE,30158476,"30,092.00 "
Department of Health,NHS Sheffield CCG,31/12/2019,Clinical&Medical-Independent Sector,MENTAL HEALTH CONTRACTS,SOUTH YORKSHIRE HOUSING ASSOCIATION LTD,30158491,"34,435.00 "
Department of Health,NHS Sheffield CCG,31/12/2019,Cont Care-Physical Disab (<65),CHC ADULT FULLY FUNDED,LONGLEY HEALTH CARE LTD,30158548,"85,229.05 "
Department of Health,NHS Sheffield CCG,31/12/2019,Cont Care-Physical Disab (<65),CHC ADULT FULLY FUNDED,VALORUM CARE LTD,30158561,"55,170.90 "
Department of Health,NHS Sheffield CCG,31/12/2019,Cont Care-Physical Disab (<65),CHC ADULT FULLY FUNDED,LOXLEY HEALTH CARE LTD,30158575,"59,184.54 "
Department of Health,NHS Sheffield CCG,31/12/2019,Cont Care-Physical Disab (<65),CHC ADULT FULLY FUNDED,SOUTH YORKSHIRE HOUSING ASSOCIATION LTD,30158581,"97,627.48 "
Department of Health,NHS Sheffield CCG,31/12/2019,Cont Care-Physical Disab (<65),CHC ADULT FULLY FUNDED,WILLOWBECK HEALTH CARE LTD,30158585,"177,245.84 "
Department of Health,NHS Sheffield CCG,31/12/2019,Computer Software/License,PRIMARY CARE IT,PHOENIX SOFTWARE LTD,30166406,"49,931.34 "
Department of Health,NHS Sheffield CCG,31/12/2019,Clinical&Medical-Independent Sector,ACUTE COMMISSIONING,CLAREMONT HOSPITAL,30197479,"66,095.00 "
Department of Health,NHS Sheffield CCG,31/12/2019,Seconded-Basic Sal-Staff fm oth org,BEREAVEMENT SERVICE,NHS ROTHERHAM CCG,30221687,"27,317.00 "
Department of Health,NHS Sheffield CCG,31/12/2019,Seconded-Employer's NHI Costs,BEREAVEMENT SERVICE,NHS ROTHERHAM CCG,30221687,"3,439.00 "
Department of Health,NHS Sheffield CCG,31/12/2019,Cont Care-Physical Disab (65+),CHC ADULT FULLY FUNDED,BC SHEFFIELD LTD,30251375,"39,504.08 "
Department of Health,NHS Sheffield CCG,31/12/2019,C&M-APMS Other Delivery,GP FORWARD VIEW,ECCLESFIELD GROUP PRACTICE,30261176,"25,791.00 "
Department of Health,NHS Sheffield CCG,31/12/2019,C&M-APMS Other Delivery,GP FORWARD VIEW,PRIMARY CARE SHEFFIELD LTD,30261177,"25,791.00 "
Department of Health,NHS Sheffield CCG,31/12/2019,C&M-APMS Other Delivery,GP FORWARD VIEW,PRIMARY CARE SHEFFIELD LTD,30261178,"25,791.00 "
Department of Health,NHS Sheffield CCG,31/12/2019,C&M-APMS Other Delivery,GP FORWARD VIEW,DYKES HALL MEDICAL CENTRE,30261179,"25,791.00 "
Department of Health,NHS Sheffield CCG,31/12/2019,C&M-APMS Other Delivery,GP FORWARD VIEW,PRIMARY CARE SHEFFIELD LTD,30261180,"25,791.00 "
Department of Health,NHS Sheffield CCG,31/12/2019,C&M-APMS Other Delivery,GP FORWARD VIEW,PRIMARY CARE SHEFFIELD LTD,30261181,"25,791.00 "
Department of Health,NHS Sheffield CCG,31/12/2019,C&M-APMS Other Delivery,GP FORWARD VIEW,PRIMARY CARE SHEFFIELD LTD,30261182,"25,791.00 "
Department of Health,NHS Sheffield CCG,31/12/2019,C&M-APMS Other Delivery,GP FORWARD VIEW,VALLEY MEDICAL CENTRE,30261183,"25,791.00 "
Department of Health,NHS Sheffield CCG,31/12/2019,C&M-APMS Other Delivery,GP FORWARD VIEW,PRIMARY CARE SHEFFIELD LTD,30261184,"25,791.00 "
Department of Health,NHS Sheffield CCG,31/12/2019,C&M-APMS Other Delivery,GP FORWARD VIEW,PRIMARY CARE SHEFFIELD LTD,30261185,"25,791.00 "
Department of Health,NHS Sheffield CCG,31/12/2019,C&M-APMS Other Delivery,GP FORWARD VIEW,FORGE HEALTH GROUP,30261186,"25,791.00 "
Department of Health,NHS Sheffield CCG,31/12/2019,C&M-APMS Other Delivery,GP FORWARD VIEW,DEVONSHIRE GREEN MEDICAL CENTRE,30261187,"25,791.00 "
Department of Health,NHS Sheffield CCG,31/12/2019,C&M-APMS Other Delivery,GP FORWARD VIEW,MANCHESTER ROAD SURGERY SHEFFIELD,30261188,"25,791.00 "
Department of Health,NHS Sheffield CCG,31/12/2019,C&M-APMS Other Delivery,GP FORWARD VIEW,PRIMARY CARE SHEFFIELD LTD,30261189,"25,791.00 "
Department of Health,NHS Sheffield CCG,31/12/2019,C&M-APMS Other Delivery,GP FORWARD VIEW,JAUNTY SPRINGS HEALTH CENTRE,30261190,"25,791.00 "
Department of Health,NHS Sheffield CCG,31/12/2019,Hcare Srv Rec Fdtn Trust-Contract Baseline,MENTAL HEALTH CONTRACTS,SHEFFIELD HEALTH & SOCIAL CARE NHS FOUNDATION TRUST,30276513,"512,516.00 "
Department of Health,NHS Sheffield CCG,31/12/2019,C&M-GMS LES Translation Fees,INTERPRETING SERVICES,LANGUAGELINE SOLUTIONS,30276519,"46,644.96 "
Department of Health,NHS Sheffield CCG,31/12/2019,C&M-GMS LES Translation Fees,INTERPRETING SERVICES,LANGUAGELINE SOLUTIONS,30276521,"27,141.60 "
Department of Health,NHS Sheffield CCG,31/12/2019,Hcare Srv Rec Fdtn Trust-Contract Baseline,ACUTE CHILDRENS SERVICES,SHEFFIELD CHILDRENS NHS FOUNDATION TRUST,30276523,"3,387,974.00 "
Department of Health,NHS Sheffield CCG,31/12/2019,C&M-GMS IT Comm Servs -GP Practices,PRIMARY CARE IT,KIER BUSINESS SERVICES LTD,30276525,"100,142.40 "
Department of Health,NHS Sheffield CCG,31/12/2019,FM Computer Contracts,BUSINESS INFORMATICS,KIER BUSINESS SERVICES LTD,30276525,"36,193.20 "
Department of Health,NHS Sheffield CCG,31/12/2019,Cont Care-Physical Disab (65+),CHC ADULT FULLY FUNDED,ABBEYCARE NURSING,30276542,"53,446.17 "
Department of Health,NHS Sheffield CCG,31/12/2019,Cont Care-Physical Disab (<65),CHC ADULT FULLY FUNDED,ROSEBERRY CARE CENTRES,30276562,"42,711.95 "
Department of Health,NHS Sheffield CCG,31/12/2019,Cont Care-Physical Disab (<65),CHC ADULT FULLY FUNDED,SEVEN HILLS NURSING HOME,30276577,"31,016.14 "
Department of Health,NHS Sheffield CCG,31/12/2019,Cont Care-Physical Disab (<65),CHC ADULT FULLY FUNDED,SUSASH GB LTD T/A EAGLE HOUSE,30276608,"25,154.39 "
Department of Health,NHS Sheffield CCG,31/12/2019,Cont Care-Physical Disab (<65),CHC ADULT FULLY FUNDED,FOUR SEASONS HEALTH CARE LTD,30276614,"32,231.04 "
Department of Health,NHS Sheffield CCG,31/12/2019,Cont Care-Physical Disab (<65),CHC ADULT FULLY FUNDED,FAIRWINDS HEALTH CARE LTD,30276616,"34,685.06 "
Department of Health,NHS Sheffield CCG,31/12/2019,Cont Care-Physical Disab (<65),CHC ADULT FULLY FUNDED,HORIZON CARE HOMES LTD,30276619,"42,740.96 "
Department of Health,NHS Sheffield CCG,31/12/2019,Cont Care-Physical Disab (<65),CHC ADULT FULLY FUNDED,HORIZON CARE HOMES LTD,30276629,"28,508.22 "
Department of Health,NHS Sheffield CCG,31/12/2019,Cont Care-Physical Disab (<65),CHC ADULT FULLY FUNDED,HORIZON CARE HOMES LTD,30276631,"38,430.86 "
Department of Health,NHS Sheffield CCG,31/12/2019,Cont Care-Funded Nursing Care Allow,FUNDED NURSING CARE,BONDCARE,30276637,"32,402.29 "
Department of Health,NHS Sheffield CCG,31/12/2019,Cont Care-Funded Nursing Care Allow,FUNDED NURSING CARE,HC ONE LTD,30276649,"27,009.81 "
Department of Health,NHS Sheffield CCG,31/12/2019,Cont Care-Funded Nursing Care Allow,FUNDED NURSING CARE,ROSEBERRY CARE CENTRES,30276664,"26,070.76 "
Department of Health,NHS Sheffield CCG,31/12/2019,Cont Care-Funded Nursing Care Allow,FUNDED NURSING CARE,SCARSDALE GRANGE NURSING HOME,30276673,"26,063.75 "
Department of Health,NHS Sheffield CCG,31/12/2019,Clinical&Medical-Independent Sector,Mental Health Services - S117 Mental Health,MOORVILLE RESIDENTIAL,30276686,"15,062.28 "
Department of Health,NHS Sheffield CCG,31/12/2019,Cont Care-Learning Disab(<65),CHC ADULT FULLY FUNDED,MOORVILLE RESIDENTIAL,30276686,"9,149.03 "
Department of Health,NHS Sheffield CCG,31/12/2019,Cont Care-Learning Disab(<65),CHC ADULT JOINT FUNDED,MOORVILLE RESIDENTIAL,30276686,"4,024.73 "
Department of Health,NHS Sheffield CCG,31/12/2019,Cont Care-Mental Health (<65),CHC ADULT JOINT FUNDED,MOORVILLE RESIDENTIAL,30276686,491.66 
Department of Health,NHS Sheffield CCG,31/12/2019,Seconded-Basic Sal-Staff fm oth org,BEREAVEMENT SERVICE,NHS ROTHERHAM CCG,30276690,"28,770.55 "
Department of Health,NHS Sheffield CCG,31/12/2019,Seconded-Employer's NHI Costs,BEREAVEMENT SERVICE,NHS ROTHERHAM CCG,30276690,"3,737.03 "
Department of Health,NHS Sheffield CCG,31/12/2019,Hcare Srv Rec Fdtn Trust-Contract Baseline,MENTAL HEALTH CONTRACTS,SHEFFIELD HEALTH & SOCIAL CARE NHS FOUNDATION TRUST,30276699,"6,833,545.75 "
Department of Health,NHS Sheffield CCG,31/12/2019,C&M-APMS LES Basket of Procedures,LOCAL ENHANCED SERVICES,ECCLESFIELD GROUP PRACTICE,30301918,"33,566.00 "
Department of Health,NHS Sheffield CCG,31/12/2019,C&M-APMS LES Basket of Procedures,LOCAL ENHANCED SERVICES,PRIMARY CARE SHEFFIELD LTD,30301920,"81,220.00 "
Department of Health,NHS Sheffield CCG,31/12/2019,C&M-APMS LES Basket of Procedures,LOCAL ENHANCED SERVICES,PRIMARY CARE SHEFFIELD LTD,30301923,"99,625.00 "
Department of Health,NHS Sheffield CCG,31/12/2019,C&M-APMS LES Basket of Procedures,LOCAL ENHANCED SERVICES,VALLEY MEDICAL CENTRE,30301926,"125,352.00 "
Department of Health,NHS Sheffield CCG,31/12/2019,C&M-APMS LES Basket of Procedures,LOCAL ENHANCED SERVICES,PRIMARY CARE SHEFFIELD LTD,30301930,"100,000.00 "
Department of Health,NHS Sheffield CCG,31/12/2019,Hcare Srv Rec Fdtn Trust-Contract Baseline,MENTAL HEALTH CONTRACTS,ROTHERHAM DONCASTER AND SOUTH HUMBER NHS FOUNDATION TRUST,30309077,"25,487.95 "
Department of Health,NHS Sheffield CCG,31/12/2019,Computer Software/License,COMMISSIONING - NON ACUTE,ADVANCED DIGITAL INSTITUTE,30309082,"36,000.00 "
Department of Health,NHS Sheffield CCG,31/12/2019,C&M-APMS LES Basket of Procedures,LOCAL ENHANCED SERVICES,PRIMARY CARE SHEFFIELD LTD,30348010,"69,320.00 "
Department of Health,NHS Sheffield CCG,31/12/2019,Cont Care- Adult 100% Fully Funded,CHC ADULT JOINT FUNDED,HUGH JAMES INVOLEGAL LLP,30352460,"37,600.77 "
Department of Health,NHS Sheffield CCG,31/12/2019,Cont Care- Adult 100% Fully Funded,CHC ADULT JOINT FUNDED,FYLDE LAW,30352468,"56,897.31 "
Department of Health,NHS Sheffield CCG,31/12/2019,Clinical&Medical-Othe Public Sector,COMMUNITY SERVICES,SHEFFIELD CITY COUNCIL,30352494,"150,416.67 "
Department of Health,NHS Sheffield CCG,31/12/2019,Clinical&Medical-Othe Public Sector,MENTAL HEALTH SERVICES - COLLABORATIVE COMMISSIONING,SHEFFIELD CITY COUNCIL,30352494,"83,669.08 "
Department of Health,NHS Sheffield CCG,31/12/2019,Clinical&Medical-Othe Public Sector,REABLEMENT,SHEFFIELD CITY COUNCIL,30352494,"21,830.67 "
Department of Health,NHS Sheffield CCG,31/12/2019,Clinical&Medical-Othe Public Sector,SAFEGUARDING,SHEFFIELD CITY COUNCIL,30352494,"12,234.75 "
Department of Health,NHS Sheffield CCG,31/12/2019,Cont Care-Physical Disab (65+),CHC ADULT FULLY FUNDED,SHEFFIELD CITY COUNCIL,30352494,"56,572.67 "
Department of Health,NHS Sheffield CCG,31/12/2019,Soc Care-Joint H&C Teams/Working,INTERMEDIATE CARE,SHEFFIELD CITY COUNCIL,30352494,"151,447.58 "
Department of Health,NHS Sheffield CCG,31/12/2019,Soc Care-Other Soc Care,COMMISSIONING - NON ACUTE,SHEFFIELD CITY COUNCIL,30352494,"1,467,750.00 "
Department of Health,NHS Sheffield CCG,31/12/2019,Soc Care-Support Prim Care,COMMUNITY SERVICES,SHEFFIELD CITY COUNCIL,30352494,"59,500.00 "
Department of Health,NHS Sheffield CCG,31/12/2019,Hcare Srv Rec Fdtn Trust-Contract Baseline,ACUTE COMMISSIONING,BARNSLEY HOSPITAL NHS FOUNDATION TRUST,30352521,"82,654.00 "
Department of Health,NHS Sheffield CCG,31/12/2019,Clinical&Medical-Independent Sector,ACUTE COMMISSIONING,SPAMEDICA LTD,30352619,"142,944.58 "
Department of Health,NHS Sheffield CCG,31/12/2019,Hcare Srv Rec Fdtn Trust-Contract Baseline,ACUTE COMMISSIONING,SHEFFIELD TEACHING HOSPITALS NHS FOUNDATION TRUST,30352635,"30,408,062.00 "
Department of Health,NHS Sheffield CCG,31/12/2019,Hcare Srv Rec Fdtn Trust-Contract Baseline,ACUTE COMMISSIONING,SHEFFIELD TEACHING HOSPITALS NHS FOUNDATION TRUST,30352640,"1,367,220.00 "
Department of Health,NHS Sheffield CCG,31/12/2019,Hcare Srv Rec Fdtn Trust-Contract Baseline,ACUTE COMMISSIONING,SHEFFIELD TEACHING HOSPITALS NHS FOUNDATION TRUST,30352642,"192,716.00 "
Department of Health,NHS Sheffield CCG,31/12/2019,Hcare Srv Rec Fdtn Trust-Contract Baseline,ACUTE COMMISSIONING,SHEFFIELD TEACHING HOSPITALS NHS FOUNDATION TRUST,30352645,"3,898,717.00 "
Department of Health,NHS Sheffield CCG,31/12/2019,Hcare Srv Rec Fdtn Trust-Contract Baseline,ACUTE COMMISSIONING,SHEFFIELD TEACHING HOSPITALS NHS FOUNDATION TRUST,30352647,"766,434.00 "
Department of Health,NHS Sheffield CCG,31/12/2019,C&M-GMS IT Comm Servs -GP Practices,PRIMARY CARE IT,BT GLOBAL SERVICES,30352649,"25,083.50 "
Department of Health,NHS Sheffield CCG,31/12/2019,C&M-OES Childrens Schemes,LOCAL ENHANCED SERVICES,PRIMARY EYECARE SERVICES LTD,30352667,575.00 
Department of Health,NHS Sheffield CCG,31/12/2019,C&M-OES Glaucoma,LOCAL ENHANCED SERVICES,PRIMARY EYECARE SERVICES LTD,30352667,685.00 
Department of Health,NHS Sheffield CCG,31/12/2019,C&M-OES Intra-ocular Ocular Hypertn,LOCAL ENHANCED SERVICES,PRIMARY EYECARE SERVICES LTD,30352667,320.00 
Department of Health,NHS Sheffield CCG,31/12/2019,C&M-OES PEARS,LOCAL ENHANCED SERVICES,PRIMARY EYECARE SERVICES LTD,30352667,"27,819.50 "
Department of Health,NHS Sheffield CCG,31/12/2019,C&M-GMS LES Basket of Procedures,LOCAL ENHANCED SERVICES,PRIMARY CARE SHEFFIELD LTD,30352676,"52,308.33 "
Department of Health,NHS Sheffield CCG,31/12/2019,C&M-APMS DES Extended Hours Access,GP FORWARD VIEW,PRIMARY CARE SHEFFIELD LTD,30352678,"295,941.67 "
Department of Health,NHS Sheffield CCG,31/12/2019,Voids and Subsidies,RECHARGES NHS PROPERTY SERVICES LTD,DARNALL WELL BEING,30352731,"31,340.50 "
Department of Health,NHS Sheffield CCG,31/12/2019,Hcare Srv Rec Fdtn Trust-Contract Baseline,ACUTE COMMISSIONING,CHESTERFIELD ROYAL HOSPITAL NHS FOUNDATION TRUST,30352750,"318,586.00 "
Department of Health,NHS Sheffield CCG,31/12/2019,C&M-GMS GP Statutory Levy,PRC DELEGATED CO-COMMISSIONING,BASLOW ROAD & SHOREHAM STREET SURGERIES,30375372,(442.44)
Department of Health,NHS Sheffield CCG,31/12/2019,C&M-GMS Cost of Drugs -Prescribing,LOCAL ENHANCED SERVICES,BUCHANAN ROAD SURGERY,30375375,92.97 
Department of Health,NHS Sheffield CCG,31/12/2019,C&M-GMS Global Sum,PRC DELEGATED CO-COMMISSIONING,BUCHANAN ROAD SURGERY,30375375,"36,144.41 "
Department of Health,NHS Sheffield CCG,31/12/2019,C&M-GMS MPIG Correction Factor,PRC DELEGATED CO-COMMISSIONING,BUCHANAN ROAD SURGERY,30375375,655.25 
Department of Health,NHS Sheffield CCG,31/12/2019,C&M-GMS PCN DES Participation,PRC DELEGATED CO-COMMISSIONING,BUCHANAN ROAD SURGERY,30375375,736.41 
Department of Health,NHS Sheffield CCG,31/12/2019,C&M-GMS PCO Seniority,PRC DELEGATED CO-COMMISSIONING,BUCHANAN ROAD SURGERY,30375375,413.60 
Department of Health,NHS Sheffield CCG,31/12/2019,C&M-GMS Prem Notional Rent,PRC DELEGATED CO-COMMISSIONING,BUCHANAN ROAD SURGERY,30375375,"2,595.83 "
Department of Health,NHS Sheffield CCG,31/12/2019,C&M-GMS Prem Rates,PRC DELEGATED CO-COMMISSIONING,BUCHANAN ROAD SURGERY,30375375,884.00 
Department of Health,NHS Sheffield CCG,31/12/2019,C&M-GMS Prof Fees Prescribing,PRC DELEGATED CO-COMMISSIONING,BUCHANAN ROAD SURGERY,30375375,28.97 
Department of Health,NHS Sheffield CCG,31/12/2019,C&M-GMS QOF Aspiration,PRC DELEGATED CO-COMMISSIONING,BUCHANAN ROAD SURGERY,30375375,"4,303.24 "
Department of Health,NHS Sheffield CCG,31/12/2019,C&M-GMS Cost of Drugs -Prescribing,LOCAL ENHANCED SERVICES,BROOMHILL SURGERY,30375379,"16,767.01 "
Department of Health,NHS Sheffield CCG,31/12/2019,C&M-GMS Global Sum,PRC DELEGATED CO-COMMISSIONING,BROOMHILL SURGERY,30375379,"65,079.91 "
Department of Health,NHS Sheffield CCG,31/12/2019,C&M-GMS MPIG Correction Factor,PRC DELEGATED CO-COMMISSIONING,BROOMHILL SURGERY,30375379,251.00 
Department of Health,NHS Sheffield CCG,31/12/2019,C&M-GMS PCN DES Participation,PRC DELEGATED CO-COMMISSIONING,BROOMHILL SURGERY,30375379,"1,318.50 "
Department of Health,NHS Sheffield CCG,31/12/2019,C&M-GMS PCO Seniority,PRC DELEGATED CO-COMMISSIONING,BROOMHILL SURGERY,30375379,991.77 
Department of Health,NHS Sheffield CCG,31/12/2019,C&M-GMS Prem Cost Rent,PRC DELEGATED CO-COMMISSIONING,BROOMHILL SURGERY,30375379,"2,413.75 "
Department of Health,NHS Sheffield CCG,31/12/2019,C&M-GMS Prem Notional Rent,PRC DELEGATED CO-COMMISSIONING,BROOMHILL SURGERY,30375379,"2,612.50 "
Department of Health,NHS Sheffield CCG,31/12/2019,C&M-GMS Prem Rates,PRC DELEGATED CO-COMMISSIONING,BROOMHILL SURGERY,30375379,"1,891.00 "
Department of Health,NHS Sheffield CCG,31/12/2019,C&M-GMS Prof Fees Prescribing,PRC DELEGATED CO-COMMISSIONING,BROOMHILL SURGERY,30375379,"3,064.22 "
Department of Health,NHS Sheffield CCG,31/12/2019,C&M-GMS QOF Aspiration,PRC DELEGATED CO-COMMISSIONING,BROOMHILL SURGERY,30375379,"6,211.39 "
Department of Health,NHS Sheffield CCG,31/12/2019,C&M-GMS Cost of Drugs -Prescribing,LOCAL ENHANCED SERVICES,CHARNOCK HEALTH PRIMARY CARE CENTRE,30375380,"5,386.99 "
Department of Health,NHS Sheffield CCG,31/12/2019,C&M-GMS Global Sum,PRC DELEGATED CO-COMMISSIONING,CHARNOCK HEALTH PRIMARY CARE CENTRE,30375380,"43,644.95 "
Department of Health,NHS Sheffield CCG,31/12/2019,C&M-GMS MPIG Correction Factor,PRC DELEGATED CO-COMMISSIONING,CHARNOCK HEALTH PRIMARY CARE CENTRE,30375380,206.62 
Department of Health,NHS Sheffield CCG,31/12/2019,C&M-GMS PCN DES Participation,PRC DELEGATED CO-COMMISSIONING,CHARNOCK HEALTH PRIMARY CARE CENTRE,30375380,869.33 
Department of Health,NHS Sheffield CCG,31/12/2019,C&M-GMS PCO Other,PRC DELEGATED CO-COMMISSIONING,CHARNOCK HEALTH PRIMARY CARE CENTRE,30375380,363.80 
Department of Health,NHS Sheffield CCG,31/12/2019,C&M-GMS PCO Seniority,PRC DELEGATED CO-COMMISSIONING,CHARNOCK HEALTH PRIMARY CARE CENTRE,30375380,"1,541.00 "
Department of Health,NHS Sheffield CCG,31/12/2019,C&M-GMS Prem Notional Rent,PRC DELEGATED CO-COMMISSIONING,CHARNOCK HEALTH PRIMARY CARE CENTRE,30375380,335.00 
Department of Health,NHS Sheffield CCG,31/12/2019,C&M-GMS Prem Rates,PRC DELEGATED CO-COMMISSIONING,CHARNOCK HEALTH PRIMARY CARE CENTRE,30375380,"1,547.00 "
Department of Health,NHS Sheffield CCG,31/12/2019,C&M-GMS Prof Fees Prescribing,PRC DELEGATED CO-COMMISSIONING,CHARNOCK HEALTH PRIMARY CARE CENTRE,30375380,"1,063.47 "
Department of Health,NHS Sheffield CCG,31/12/2019,C&M-GMS QOF Aspiration,PRC DELEGATED CO-COMMISSIONING,CHARNOCK HEALTH PRIMARY CARE CENTRE,30375380,"4,932.79 "
Department of Health,NHS Sheffield CCG,31/12/2019,C&M-GMS Cost of Drugs -Prescribing,LOCAL ENHANCED SERVICES,CARTERKNOWLE & DORE MEDICAL PRACTICE,30375383,"27,647.02 "
Department of Health,NHS Sheffield CCG,31/12/2019,C&M-GMS DES Learn Dsblty Hlth Chk,PRC DELEGATED CO-COMMISSIONING,CARTERKNOWLE & DORE MEDICAL PRACTICE,30375383,"2,660.00 "
Department of Health,NHS Sheffield CCG,31/12/2019,C&M-GMS Global Sum,PRC DELEGATED CO-COMMISSIONING,CARTERKNOWLE & DORE MEDICAL PRACTICE,30375383,"85,300.87 "
Department of Health,NHS Sheffield CCG,31/12/2019,C&M-GMS MPIG Correction Factor,PRC DELEGATED CO-COMMISSIONING,CARTERKNOWLE & DORE MEDICAL PRACTICE,30375383,747.29 
Department of Health,NHS Sheffield CCG,31/12/2019,C&M-GMS PCN DES Participation,PRC DELEGATED CO-COMMISSIONING,CARTERKNOWLE & DORE MEDICAL PRACTICE,30375383,"1,742.96 "
Department of Health,NHS Sheffield CCG,31/12/2019,C&M-GMS PCO Seniority,PRC DELEGATED CO-COMMISSIONING,CARTERKNOWLE & DORE MEDICAL PRACTICE,30375383,"1,201.21 "
Department of Health,NHS Sheffield CCG,31/12/2019,C&M-GMS Prem Notional Rent,PRC DELEGATED CO-COMMISSIONING,CARTERKNOWLE & DORE MEDICAL PRACTICE,30375383,"7,596.50 "
Department of Health,NHS Sheffield CCG,31/12/2019,C&M-GMS Prem Rates,PRC DELEGATED CO-COMMISSIONING,CARTERKNOWLE & DORE MEDICAL PRACTICE,30375383,"1,961.00 "
Department of Health,NHS Sheffield CCG,31/12/2019,C&M-GMS Prof Fees Prescribing,PRC DELEGATED CO-COMMISSIONING,CARTERKNOWLE & DORE MEDICAL PRACTICE,30375383,"5,169.77 "
Department of Health,NHS Sheffield CCG,31/12/2019,C&M-GMS QOF Aspiration,PRC DELEGATED CO-COMMISSIONING,CARTERKNOWLE & DORE MEDICAL PRACTICE,30375383,"10,055.02 "
Department of Health,NHS Sheffield CCG,31/12/2019,C&M-GMS Cost of Drugs -Prescribing,LOCAL ENHANCED SERVICES,CROOKES PRACTICE,30375388,"5,913.05 "
Department of Health,NHS Sheffield CCG,31/12/2019,C&M-GMS DES Learn Dsblty Hlth Chk,PRC DELEGATED CO-COMMISSIONING,CROOKES PRACTICE,30375388,980.00 
Department of Health,NHS Sheffield CCG,31/12/2019,C&M-GMS Global Sum,PRC DELEGATED CO-COMMISSIONING,CROOKES PRACTICE,30375388,"51,584.27 "
Department of Health,NHS Sheffield CCG,31/12/2019,C&M-GMS MPIG Correction Factor,PRC DELEGATED CO-COMMISSIONING,CROOKES PRACTICE,30375388,772.96 
Department of Health,NHS Sheffield CCG,31/12/2019,C&M-GMS PCN DES Participation,PRC DELEGATED CO-COMMISSIONING,CROOKES PRACTICE,30375388,"1,040.55 "
Department of Health,NHS Sheffield CCG,31/12/2019,C&M-GMS PCO Other,PRC DELEGATED CO-COMMISSIONING,CROOKES PRACTICE,30375388,512.60 
Department of Health,NHS Sheffield CCG,31/12/2019,C&M-GMS PCO Seniority,PRC DELEGATED CO-COMMISSIONING,CROOKES PRACTICE,30375388,"1,303.48 "
Department of Health,NHS Sheffield CCG,31/12/2019,C&M-GMS Prem Notional Rent,PRC DELEGATED CO-COMMISSIONING,CROOKES PRACTICE,30375388,"3,874.67 "
Department of Health,NHS Sheffield CCG,31/12/2019,C&M-GMS Prem Rates,PRC DELEGATED CO-COMMISSIONING,CROOKES PRACTICE,30375388,"1,510.00 "
Department of Health,NHS Sheffield CCG,31/12/2019,C&M-GMS Prem Water Rates,PRC DELEGATED CO-COMMISSIONING,CROOKES PRACTICE,30375388,155.69 
Department of Health,NHS Sheffield CCG,31/12/2019,C&M-GMS Prof Fees Prescribing,PRC DELEGATED CO-COMMISSIONING,CROOKES PRACTICE,30375388,"1,181.60 "
Department of Health,NHS Sheffield CCG,31/12/2019,C&M-GMS QOF Aspiration,PRC DELEGATED CO-COMMISSIONING,CROOKES PRACTICE,30375388,"4,885.77 "
Department of Health,NHS Sheffield CCG,31/12/2019,C&M-GMS Cost of Drugs -Prescribing,LOCAL ENHANCED SERVICES,DEVONSHIRE GREEN MEDICAL CENTRE,30375391,"4,804.63 "
Department of Health,NHS Sheffield CCG,31/12/2019,C&M-GMS DES Extended Hours Access,PRC DELEGATED CO-COMMISSIONING,DEVONSHIRE GREEN MEDICAL CENTRE,30375391,"6,816.36 "
Department of Health,NHS Sheffield CCG,31/12/2019,C&M-GMS Global Sum,PRC DELEGATED CO-COMMISSIONING,DEVONSHIRE GREEN MEDICAL CENTRE,30375391,"46,282.67 "
Department of Health,NHS Sheffield CCG,31/12/2019,C&M-GMS MPIG Correction Factor,PRC DELEGATED CO-COMMISSIONING,DEVONSHIRE GREEN MEDICAL CENTRE,30375391,"1,615.60 "
Department of Health,NHS Sheffield CCG,31/12/2019,C&M-GMS PCN DES Clinical Director,PRC DELEGATED CO-COMMISSIONING,DEVONSHIRE GREEN MEDICAL CENTRE,30375391,"3,188.00 "
Department of Health,NHS Sheffield CCG,31/12/2019,C&M-GMS PCN DES PCN support,LOCAL ENHANCED SERVICES,DEVONSHIRE GREEN MEDICAL CENTRE,30375391,"6,977.63 "
Department of Health,NHS Sheffield CCG,31/12/2019,C&M-GMS PCN DES Participation,PRC DELEGATED CO-COMMISSIONING,DEVONSHIRE GREEN MEDICAL CENTRE,30375391,931.75 
Department of Health,NHS Sheffield CCG,31/12/2019,C&M-GMS PCO Seniority,PRC DELEGATED CO-COMMISSIONING,DEVONSHIRE GREEN MEDICAL CENTRE,30375391,"1,811.99 "
Department of Health,NHS Sheffield CCG,31/12/2019,C&M-GMS Prem Notional Rent,PRC DELEGATED CO-COMMISSIONING,DEVONSHIRE GREEN MEDICAL CENTRE,30375391,"5,987.50 "
Department of Health,NHS Sheffield CCG,31/12/2019,C&M-GMS Prem Rates,PRC DELEGATED CO-COMMISSIONING,DEVONSHIRE GREEN MEDICAL CENTRE,30375391,975.00 
Department of Health,NHS Sheffield CCG,31/12/2019,C&M-GMS Prof Fees Prescribing,PRC DELEGATED CO-COMMISSIONING,DEVONSHIRE GREEN MEDICAL CENTRE,30375391,975.70 
Department of Health,NHS Sheffield CCG,31/12/2019,C&M-GMS QOF Aspiration,PRC DELEGATED CO-COMMISSIONING,DEVONSHIRE GREEN MEDICAL CENTRE,30375391,"4,805.68 "
Department of Health,NHS Sheffield CCG,31/12/2019,C&M-GMS Cost of Drugs -Prescribing,LOCAL ENHANCED SERVICES,ECCLESFIELD GROUP PRACTICE,30375395,"5,022.59 "
Department of Health,NHS Sheffield CCG,31/12/2019,C&M-GMS DES Extended Hours Access,PRC DELEGATED CO-COMMISSIONING,ECCLESFIELD GROUP PRACTICE,30375395,"5,190.33 "
Department of Health,NHS Sheffield CCG,31/12/2019,C&M-GMS DES Learn Dsblty Hlth Chk,PRC DELEGATED CO-COMMISSIONING,ECCLESFIELD GROUP PRACTICE,30375395,"3,920.00 "
Department of Health,NHS Sheffield CCG,31/12/2019,C&M-GMS Global Sum,PRC DELEGATED CO-COMMISSIONING,ECCLESFIELD GROUP PRACTICE,30375395,"70,117.10 "
Department of Health,NHS Sheffield CCG,31/12/2019,C&M-GMS PCN DES Clinical Director,PRC DELEGATED CO-COMMISSIONING,ECCLESFIELD GROUP PRACTICE,30375395,"2,427.51 "
Department of Health,NHS Sheffield CCG,31/12/2019,C&M-GMS PCN DES PCN support,LOCAL ENHANCED SERVICES,ECCLESFIELD GROUP PRACTICE,30375395,"5,313.13 "
Department of Health,NHS Sheffield CCG,31/12/2019,C&M-GMS PCN DES Participation,PRC DELEGATED CO-COMMISSIONING,ECCLESFIELD GROUP PRACTICE,30375395,"1,400.97 "
Department of Health,NHS Sheffield CCG,31/12/2019,C&M-GMS PCO Other,PRC DELEGATED CO-COMMISSIONING,ECCLESFIELD GROUP PRACTICE,30375395,525.30 
Department of Health,NHS Sheffield CCG,31/12/2019,C&M-GMS PCO Seniority,PRC DELEGATED CO-COMMISSIONING,ECCLESFIELD GROUP PRACTICE,30375395,"1,733.53 "
Department of Health,NHS Sheffield CCG,31/12/2019,C&M-GMS Prem Notional Rent,PRC DELEGATED CO-COMMISSIONING,ECCLESFIELD GROUP PRACTICE,30375395,"6,805.42 "
Department of Health,NHS Sheffield CCG,31/12/2019,C&M-GMS Prem Rates,PRC DELEGATED CO-COMMISSIONING,ECCLESFIELD GROUP PRACTICE,30375395,"1,527.00 "
Department of Health,NHS Sheffield CCG,31/12/2019,C&M-GMS Prof Fees Prescribing,PRC DELEGATED CO-COMMISSIONING,ECCLESFIELD GROUP PRACTICE,30375395,736.56 
Department of Health,NHS Sheffield CCG,31/12/2019,C&M-GMS QOF Aspiration,PRC DELEGATED CO-COMMISSIONING,ECCLESFIELD GROUP PRACTICE,30375395,"9,179.49 "
Department of Health,NHS Sheffield CCG,31/12/2019,C&M-GMS Cost of Drugs -Prescribing,LOCAL ENHANCED SERVICES,ELM LANE SURGERY,30375397,"5,963.78 "
Department of Health,NHS Sheffield CCG,31/12/2019,C&M-GMS DES Learn Dsblty Hlth Chk,PRC DELEGATED CO-COMMISSIONING,ELM LANE SURGERY,30375397,"4,480.00 "
Department of Health,NHS Sheffield CCG,31/12/2019,C&M-GMS Global Sum,PRC DELEGATED CO-COMMISSIONING,ELM LANE SURGERY,30375397,"41,569.36 "
Department of Health,NHS Sheffield CCG,31/12/2019,C&M-GMS MPIG Correction Factor,PRC DELEGATED CO-COMMISSIONING,ELM LANE SURGERY,30375397,419.26 
Department of Health,NHS Sheffield CCG,31/12/2019,C&M-GMS PCN DES Participation,PRC DELEGATED CO-COMMISSIONING,ELM LANE SURGERY,30375397,821.44 
Department of Health,NHS Sheffield CCG,31/12/2019,C&M-GMS Prem Notional Rent,PRC DELEGATED CO-COMMISSIONING,ELM LANE SURGERY,30375397,"5,718.00 "
Department of Health,NHS Sheffield CCG,31/12/2019,C&M-GMS Prof Fees Prescribing,PRC DELEGATED CO-COMMISSIONING,ELM LANE SURGERY,30375397,"1,022.08 "
Department of Health,NHS Sheffield CCG,31/12/2019,C&M-GMS QOF Aspiration,PRC DELEGATED CO-COMMISSIONING,ELM LANE SURGERY,30375397,"4,720.25 "
Department of Health,NHS Sheffield CCG,31/12/2019,C&M-GMS Cost of Drugs -Prescribing,LOCAL ENHANCED SERVICES,FAR LANE MEDICAL CENTRE,30375404,"3,023.14 "
Department of Health,NHS Sheffield CCG,31/12/2019,C&M-GMS Global Sum,PRC DELEGATED CO-COMMISSIONING,FAR LANE MEDICAL CENTRE,30375404,"55,822.86 "
Department of Health,NHS Sheffield CCG,31/12/2019,C&M-GMS PCN DES Participation,PRC DELEGATED CO-COMMISSIONING,FAR LANE MEDICAL CENTRE,30375404,"1,138.48 "
Department of Health,NHS Sheffield CCG,31/12/2019,C&M-GMS PCO Other,PRC DELEGATED CO-COMMISSIONING,FAR LANE MEDICAL CENTRE,30375404,462.30 
Department of Health,NHS Sheffield CCG,31/12/2019,C&M-GMS PCO Seniority,PRC DELEGATED CO-COMMISSIONING,FAR LANE MEDICAL CENTRE,30375404,"3,068.69 "
Department of Health,NHS Sheffield CCG,31/12/2019,C&M-GMS Prem Notional Rent,PRC DELEGATED CO-COMMISSIONING,FAR LANE MEDICAL CENTRE,30375404,"3,462.50 "
Department of Health,NHS Sheffield CCG,31/12/2019,C&M-GMS Prem Rates,PRC DELEGATED CO-COMMISSIONING,FAR LANE MEDICAL CENTRE,30375404,"1,184.00 "
Department of Health,NHS Sheffield CCG,31/12/2019,C&M-GMS Prof Fees Prescribing,PRC DELEGATED CO-COMMISSIONING,FAR LANE MEDICAL CENTRE,30375404,591.74 
Department of Health,NHS Sheffield CCG,31/12/2019,C&M-GMS QOF Aspiration,PRC DELEGATED CO-COMMISSIONING,FAR LANE MEDICAL CENTRE,30375404,"5,719.80 "
Department of Health,NHS Sheffield CCG,31/12/2019,C&M-GMS Cost of Drugs -Prescribing,LOCAL ENHANCED SERVICES,HAROLD STREET MEDICAL CENTRE,30375407,104.75 
Department of Health,NHS Sheffield CCG,31/12/2019,C&M-GMS Global Sum,PRC DELEGATED CO-COMMISSIONING,HAROLD STREET MEDICAL CENTRE,30375407,"19,882.84 "
Department of Health,NHS Sheffield CCG,31/12/2019,C&M-GMS PCN DES Participation,PRC DELEGATED CO-COMMISSIONING,HAROLD STREET MEDICAL CENTRE,30375407,432.48 
Department of Health,NHS Sheffield CCG,31/12/2019,C&M-GMS PCO Other,PRC DELEGATED CO-COMMISSIONING,HAROLD STREET MEDICAL CENTRE,30375407,233.00 
Department of Health,NHS Sheffield CCG,31/12/2019,C&M-GMS PCO Seniority,PRC DELEGATED CO-COMMISSIONING,HAROLD STREET MEDICAL CENTRE,30375407,832.41 
Department of Health,NHS Sheffield CCG,31/12/2019,C&M-GMS Prem Notional Rent,PRC DELEGATED CO-COMMISSIONING,HAROLD STREET MEDICAL CENTRE,30375407,"2,337.50 "
Department of Health,NHS Sheffield CCG,31/12/2019,C&M-GMS Prof Fees Prescribing,PRC DELEGATED CO-COMMISSIONING,HAROLD STREET MEDICAL CENTRE,30375407,31.04 
Department of Health,NHS Sheffield CCG,31/12/2019,C&M-GMS QOF Aspiration,PRC DELEGATED CO-COMMISSIONING,HAROLD STREET MEDICAL CENTRE,30375407,"2,228.59 "
Department of Health,NHS Sheffield CCG,31/12/2019,C&M-GMS Cost of Drugs -Prescribing,LOCAL ENHANCED SERVICES,GRENOSIDE SURGERY,30375409,"15,173.45 "
Department of Health,NHS Sheffield CCG,31/12/2019,C&M-GMS Global Sum,PRC DELEGATED CO-COMMISSIONING,GRENOSIDE SURGERY,30375409,"59,353.17 "
Department of Health,NHS Sheffield CCG,31/12/2019,C&M-GMS PCN DES Participation,PRC DELEGATED CO-COMMISSIONING,GRENOSIDE SURGERY,30375409,"1,190.25 "
Department of Health,NHS Sheffield CCG,31/12/2019,C&M-GMS PCO Other,PRC DELEGATED CO-COMMISSIONING,GRENOSIDE SURGERY,30375409,475.50 
Department of Health,NHS Sheffield CCG,31/12/2019,C&M-GMS PCO Seniority,PRC DELEGATED CO-COMMISSIONING,GRENOSIDE SURGERY,30375409,"1,359.80 "
Department of Health,NHS Sheffield CCG,31/12/2019,C&M-GMS Prem Notional Rent,PRC DELEGATED CO-COMMISSIONING,GRENOSIDE SURGERY,30375409,"8,110.42 "
Department of Health,NHS Sheffield CCG,31/12/2019,C&M-GMS Prem Rates,PRC DELEGATED CO-COMMISSIONING,GRENOSIDE SURGERY,30375409,"2,075.00 "
Department of Health,NHS Sheffield CCG,31/12/2019,C&M-GMS Prof Fees Prescribing,PRC DELEGATED CO-COMMISSIONING,GRENOSIDE SURGERY,30375409,"2,777.14 "
Department of Health,NHS Sheffield CCG,31/12/2019,C&M-GMS QOF Aspiration,PRC DELEGATED CO-COMMISSIONING,GRENOSIDE SURGERY,30375409,"5,686.85 "
Department of Health,NHS Sheffield CCG,31/12/2019,C&M-GMS Cost of Drugs -Prescribing,LOCAL ENHANCED SERVICES,GREYSTONES MEDICAL CENTRE,30375411,"5,001.10 "
Department of Health,NHS Sheffield CCG,31/12/2019,C&M-GMS Global Sum,PRC DELEGATED CO-COMMISSIONING,GREYSTONES MEDICAL CENTRE,30375411,"20,082.12 "
Department of Health,NHS Sheffield CCG,31/12/2019,C&M-GMS MPIG Correction Factor,PRC DELEGATED CO-COMMISSIONING,GREYSTONES MEDICAL CENTRE,30375411,552.23 
Department of Health,NHS Sheffield CCG,31/12/2019,C&M-GMS PCN DES Participation,PRC DELEGATED CO-COMMISSIONING,GREYSTONES MEDICAL CENTRE,30375411,405.94 
Department of Health,NHS Sheffield CCG,31/12/2019,C&M-GMS PCO Other,PRC DELEGATED CO-COMMISSIONING,GREYSTONES MEDICAL CENTRE,30375411,263.10 
Department of Health,NHS Sheffield CCG,31/12/2019,C&M-GMS PCO Seniority,PRC DELEGATED CO-COMMISSIONING,GREYSTONES MEDICAL CENTRE,30375411,405.96 
Department of Health,NHS Sheffield CCG,31/12/2019,C&M-GMS Prem Notional Rent,PRC DELEGATED CO-COMMISSIONING,GREYSTONES MEDICAL CENTRE,30375411,"2,885.42 "
Department of Health,NHS Sheffield CCG,31/12/2019,C&M-GMS Prem Rates,PRC DELEGATED CO-COMMISSIONING,GREYSTONES MEDICAL CENTRE,30375411,606.00 
Department of Health,NHS Sheffield CCG,31/12/2019,C&M-GMS Prof Fees Prescribing,PRC DELEGATED CO-COMMISSIONING,GREYSTONES MEDICAL CENTRE,30375411,935.19 
Department of Health,NHS Sheffield CCG,31/12/2019,C&M-GMS QOF Aspiration,PRC DELEGATED CO-COMMISSIONING,GREYSTONES MEDICAL CENTRE,30375411,"2,314.72 "
Department of Health,NHS Sheffield CCG,31/12/2019,C&M-GMS Cost of Drugs -Prescribing,LOCAL ENHANCED SERVICES,HEELEY GREEN SURGERY,30375413,"6,584.82 "
Department of Health,NHS Sheffield CCG,31/12/2019,C&M-GMS DES Learn Dsblty Hlth Chk,PRC DELEGATED CO-COMMISSIONING,HEELEY GREEN SURGERY,30375413,"2,940.00 "
Department of Health,NHS Sheffield CCG,31/12/2019,C&M-GMS Global Sum,PRC DELEGATED CO-COMMISSIONING,HEELEY GREEN SURGERY,30375413,"42,237.14 "
Department of Health,NHS Sheffield CCG,31/12/2019,C&M-GMS MPIG Correction Factor,PRC DELEGATED CO-COMMISSIONING,HEELEY GREEN SURGERY,30375413,188.10 
Department of Health,NHS Sheffield CCG,31/12/2019,C&M-GMS PCN DES Participation,PRC DELEGATED CO-COMMISSIONING,HEELEY GREEN SURGERY,30375413,875.00 
Department of Health,NHS Sheffield CCG,31/12/2019,C&M-GMS PCO Seniority,PRC DELEGATED CO-COMMISSIONING,HEELEY GREEN SURGERY,30375413,557.77 
Department of Health,NHS Sheffield CCG,31/12/2019,C&M-GMS Prem Notional Rent,PRC DELEGATED CO-COMMISSIONING,HEELEY GREEN SURGERY,30375413,"3,254.17 "
Department of Health,NHS Sheffield CCG,31/12/2019,C&M-GMS Prem Rates,PRC DELEGATED CO-COMMISSIONING,HEELEY GREEN SURGERY,30375413,305.00 
Department of Health,NHS Sheffield CCG,31/12/2019,C&M-GMS Prof Fees Prescribing,PRC DELEGATED CO-COMMISSIONING,HEELEY GREEN SURGERY,30375413,"1,282.79 "
Department of Health,NHS Sheffield CCG,31/12/2019,C&M-GMS QOF Aspiration,PRC DELEGATED CO-COMMISSIONING,HEELEY GREEN SURGERY,30375413,"4,709.02 "
Department of Health,NHS Sheffield CCG,31/12/2019,C&M-GMS Cost of Drugs -Prescribing,LOCAL ENHANCED SERVICES,HOLLIES MEDICAL CENTRE,30375415,"12,154.22 "
Department of Health,NHS Sheffield CCG,31/12/2019,C&M-GMS Global Sum,PRC DELEGATED CO-COMMISSIONING,HOLLIES MEDICAL CENTRE,30375415,"61,598.03 "
Department of Health,NHS Sheffield CCG,31/12/2019,C&M-GMS MPIG Correction Factor,PRC DELEGATED CO-COMMISSIONING,HOLLIES MEDICAL CENTRE,30375415,726.36 
Department of Health,NHS Sheffield CCG,31/12/2019,C&M-GMS PCN DES Participation,PRC DELEGATED CO-COMMISSIONING,HOLLIES MEDICAL CENTRE,30375415,"1,215.60 "
Department of Health,NHS Sheffield CCG,31/12/2019,C&M-GMS PCO Seniority,PRC DELEGATED CO-COMMISSIONING,HOLLIES MEDICAL CENTRE,30375415,"1,679.09 "
Department of Health,NHS Sheffield CCG,31/12/2019,C&M-GMS Prem Notional Rent,PRC DELEGATED CO-COMMISSIONING,HOLLIES MEDICAL CENTRE,30375415,"3,229.17 "
Department of Health,NHS Sheffield CCG,31/12/2019,C&M-GMS Prof Fees Prescribing,PRC DELEGATED CO-COMMISSIONING,HOLLIES MEDICAL CENTRE,30375415,"2,364.87 "
Department of Health,NHS Sheffield CCG,31/12/2019,C&M-GMS QOF Aspiration,PRC DELEGATED CO-COMMISSIONING,HOLLIES MEDICAL CENTRE,30375415,"6,991.81 "
Department of Health,NHS Sheffield CCG,31/12/2019,C&M-GMS Cost of Drugs -Prescribing,LOCAL ENHANCED SERVICES,HEALTH CARE SURGERY,30375417,"5,402.38 "
Department of Health,NHS Sheffield CCG,31/12/2019,C&M-GMS DES Learn Dsblty Hlth Chk,PRC DELEGATED CO-COMMISSIONING,HEALTH CARE SURGERY,30375417,140.00 
Department of Health,NHS Sheffield CCG,31/12/2019,C&M-GMS Global Sum,PRC DELEGATED CO-COMMISSIONING,HEALTH CARE SURGERY,30375417,"37,991.09 "
Department of Health,NHS Sheffield CCG,31/12/2019,C&M-GMS MPIG Correction Factor,PRC DELEGATED CO-COMMISSIONING,HEALTH CARE SURGERY,30375417,390.01 
Department of Health,NHS Sheffield CCG,31/12/2019,C&M-GMS PCN DES Participation,PRC DELEGATED CO-COMMISSIONING,HEALTH CARE SURGERY,30375417,796.77 
Department of Health,NHS Sheffield CCG,31/12/2019,C&M-GMS PCO Locum Adop/Pat/Mat,PRC DELEGATED CO-COMMISSIONING,HEALTH CARE SURGERY,30375417,"8,710.18 "
Department of Health,NHS Sheffield CCG,31/12/2019,C&M-GMS PCO Other,PRC DELEGATED CO-COMMISSIONING,HEALTH CARE SURGERY,30375417,342.10 
Department of Health,NHS Sheffield CCG,31/12/2019,C&M-GMS Prem Notional Rent,PRC DELEGATED CO-COMMISSIONING,HEALTH CARE SURGERY,30375417,"3,862.50 "
Department of Health,NHS Sheffield CCG,31/12/2019,C&M-GMS Prem Rates,PRC DELEGATED CO-COMMISSIONING,HEALTH CARE SURGERY,30375417,645.88 
Department of Health,NHS Sheffield CCG,31/12/2019,C&M-GMS Prof Fees Prescribing,PRC DELEGATED CO-COMMISSIONING,HEALTH CARE SURGERY,30375417,"1,005.53 "
Department of Health,NHS Sheffield CCG,31/12/2019,C&M-GMS QOF Aspiration,PRC DELEGATED CO-COMMISSIONING,HEALTH CARE SURGERY,30375417,"4,056.36 "
Department of Health,NHS Sheffield CCG,31/12/2019,C&M-GMS Cost of Drugs -Prescribing,LOCAL ENHANCED SERVICES,MEDICAL CENTRE CRYSTAL PEAKS,30375421,"4,780.72 "
Department of Health,NHS Sheffield CCG,31/12/2019,C&M-GMS Global Sum,PRC DELEGATED CO-COMMISSIONING,MEDICAL CENTRE CRYSTAL PEAKS,30375421,"47,224.00 "
Department of Health,NHS Sheffield CCG,31/12/2019,C&M-GMS MPIG Correction Factor,PRC DELEGATED CO-COMMISSIONING,MEDICAL CENTRE CRYSTAL PEAKS,30375421,565.67 
Department of Health,NHS Sheffield CCG,31/12/2019,C&M-GMS PCN DES Participation,PRC DELEGATED CO-COMMISSIONING,MEDICAL CENTRE CRYSTAL PEAKS,30375421,950.00 
Department of Health,NHS Sheffield CCG,31/12/2019,C&M-GMS PCO Other,PRC DELEGATED CO-COMMISSIONING,MEDICAL CENTRE CRYSTAL PEAKS,30375421,426.60 
Department of Health,NHS Sheffield CCG,31/12/2019,C&M-GMS PCO Seniority,PRC DELEGATED CO-COMMISSIONING,MEDICAL CENTRE CRYSTAL PEAKS,30375421,"1,916.07 "
Department of Health,NHS Sheffield CCG,31/12/2019,C&M-GMS Prem Notional Rent,PRC DELEGATED CO-COMMISSIONING,MEDICAL CENTRE CRYSTAL PEAKS,30375421,270.00 
Department of Health,NHS Sheffield CCG,31/12/2019,C&M-GMS Prem Rates,PRC DELEGATED CO-COMMISSIONING,MEDICAL CENTRE CRYSTAL PEAKS,30375421,"1,056.00 "
Department of Health,NHS Sheffield CCG,31/12/2019,C&M-GMS Prof Fees Prescribing,PRC DELEGATED CO-COMMISSIONING,MEDICAL CENTRE CRYSTAL PEAKS,30375421,976.57 
Department of Health,NHS Sheffield CCG,31/12/2019,C&M-GMS QOF Aspiration,PRC DELEGATED CO-COMMISSIONING,MEDICAL CENTRE CRYSTAL PEAKS,30375421,"6,211.79 "
Department of Health,NHS Sheffield CCG,31/12/2019,C&M-GMS Cost of Drugs -Prescribing,LOCAL ENHANCED SERVICES,MATHEWS PRACTICE,30375425,364.48 
Department of Health,NHS Sheffield CCG,31/12/2019,C&M-GMS Global Sum,PRC DELEGATED CO-COMMISSIONING,MATHEWS PRACTICE,30375425,"59,004.18 "
Department of Health,NHS Sheffield CCG,31/12/2019,C&M-GMS MPIG Correction Factor,PRC DELEGATED CO-COMMISSIONING,MATHEWS PRACTICE,30375425,299.48 
Department of Health,NHS Sheffield CCG,31/12/2019,C&M-GMS PCN DES Participation,PRC DELEGATED CO-COMMISSIONING,MATHEWS PRACTICE,30375425,"1,281.64 "
Department of Health,NHS Sheffield CCG,31/12/2019,C&M-GMS Prem Notional Rent,PRC DELEGATED CO-COMMISSIONING,MATHEWS PRACTICE,30375425,"8,660.42 "
Department of Health,NHS Sheffield CCG,31/12/2019,C&M-GMS Prem Rates,PRC DELEGATED CO-COMMISSIONING,MATHEWS PRACTICE,30375425,"2,148.00 "
Department of Health,NHS Sheffield CCG,31/12/2019,C&M-GMS Prof Fees Prescribing,PRC DELEGATED CO-COMMISSIONING,MATHEWS PRACTICE,30375425,124.14 
Department of Health,NHS Sheffield CCG,31/12/2019,C&M-GMS QOF Aspiration,PRC DELEGATED CO-COMMISSIONING,MATHEWS PRACTICE,30375425,"7,156.84 "
Department of Health,NHS Sheffield CCG,31/12/2019,C&M-GMS Cost of Drugs -Prescribing,LOCAL ENHANCED SERVICES,MILL ROAD SURGERY SHEFFIELD,30375428,"5,515.96 "
Department of Health,NHS Sheffield CCG,31/12/2019,C&M-GMS DES Learn Dsblty Hlth Chk,PRC DELEGATED CO-COMMISSIONING,MILL ROAD SURGERY SHEFFIELD,30375428,560.00 
Department of Health,NHS Sheffield CCG,31/12/2019,C&M-GMS Global Sum,PRC DELEGATED CO-COMMISSIONING,MILL ROAD SURGERY SHEFFIELD,30375428,"41,087.07 "
Department of Health,NHS Sheffield CCG,31/12/2019,C&M-GMS MPIG Correction Factor,PRC DELEGATED CO-COMMISSIONING,MILL ROAD SURGERY SHEFFIELD,30375428,61.02 
Department of Health,NHS Sheffield CCG,31/12/2019,C&M-GMS PCN DES Participation,PRC DELEGATED CO-COMMISSIONING,MILL ROAD SURGERY SHEFFIELD,30375428,842.44 
Department of Health,NHS Sheffield CCG,31/12/2019,C&M-GMS PCO Other,PRC DELEGATED CO-COMMISSIONING,MILL ROAD SURGERY SHEFFIELD,30375428,352.70 
Department of Health,NHS Sheffield CCG,31/12/2019,C&M-GMS PCO Seniority,PRC DELEGATED CO-COMMISSIONING,MILL ROAD SURGERY SHEFFIELD,30375428,353.33 
Department of Health,NHS Sheffield CCG,31/12/2019,C&M-GMS Prem Notional Rent,PRC DELEGATED CO-COMMISSIONING,MILL ROAD SURGERY SHEFFIELD,30375428,"4,593.33 "
Department of Health,NHS Sheffield CCG,31/12/2019,C&M-GMS Prem Rates,PRC DELEGATED CO-COMMISSIONING,MILL ROAD SURGERY SHEFFIELD,30375428,"1,056.00 "
Department of Health,NHS Sheffield CCG,31/12/2019,C&M-GMS Prof Fees Prescribing,PRC DELEGATED CO-COMMISSIONING,MILL ROAD SURGERY SHEFFIELD,30375428,918.64 
Department of Health,NHS Sheffield CCG,31/12/2019,C&M-GMS QOF Aspiration,PRC DELEGATED CO-COMMISSIONING,MILL ROAD SURGERY SHEFFIELD,30375428,"5,088.50 "
Department of Health,NHS Sheffield CCG,31/12/2019,C&M-GMS Cost of Drugs -Prescribing,LOCAL ENHANCED SERVICES,NORFOLK PARK HEALTH CENTRE,30375433,"3,294.64 "
Department of Health,NHS Sheffield CCG,31/12/2019,C&M-GMS Global Sum,PRC DELEGATED CO-COMMISSIONING,NORFOLK PARK HEALTH CENTRE,30375433,"39,461.93 "
Department of Health,NHS Sheffield CCG,31/12/2019,C&M-GMS MPIG Correction Factor,PRC DELEGATED CO-COMMISSIONING,NORFOLK PARK HEALTH CENTRE,30375433,462.30 
Department of Health,NHS Sheffield CCG,31/12/2019,C&M-GMS PCN DES Participation,PRC DELEGATED CO-COMMISSIONING,NORFOLK PARK HEALTH CENTRE,30375433,763.41 
Department of Health,NHS Sheffield CCG,31/12/2019,C&M-GMS PCO Seniority,PRC DELEGATED CO-COMMISSIONING,NORFOLK PARK HEALTH CENTRE,30375433,"2,012.26 "
Department of Health,NHS Sheffield CCG,31/12/2019,C&M-GMS Prem Healthcentre Rent,PRC DELEGATED CO-COMMISSIONING,NORFOLK PARK HEALTH CENTRE,30375433,"24,820.01 "
Department of Health,NHS Sheffield CCG,31/12/2019,C&M-GMS Prof Fees Prescribing,PRC DELEGATED CO-COMMISSIONING,NORFOLK PARK HEALTH CENTRE,30375433,792.43 
Department of Health,NHS Sheffield CCG,31/12/2019,C&M-GMS QOF Aspiration,PRC DELEGATED CO-COMMISSIONING,NORFOLK PARK HEALTH CENTRE,30375433,"3,941.29 "
Department of Health,NHS Sheffield CCG,31/12/2019,C&M-GMS Cost of Drugs -Prescribing,LOCAL ENHANCED SERVICES,NORWOOD MEDICAL CENTRE SHEFFIELD,30375436,"12,314.03 "
Department of Health,NHS Sheffield CCG,31/12/2019,C&M-GMS DES Learn Dsblty Hlth Chk,PRC DELEGATED CO-COMMISSIONING,NORWOOD MEDICAL CENTRE SHEFFIELD,30375436,"1,680.00 "
Department of Health,NHS Sheffield CCG,31/12/2019,C&M-GMS Global Sum,PRC DELEGATED CO-COMMISSIONING,NORWOOD MEDICAL CENTRE SHEFFIELD,30375436,"65,606.22 "
Department of Health,NHS Sheffield CCG,31/12/2019,C&M-GMS PCN DES Participation,PRC DELEGATED CO-COMMISSIONING,NORWOOD MEDICAL CENTRE SHEFFIELD,30375436,"1,337.61 "
Department of Health,NHS Sheffield CCG,31/12/2019,C&M-GMS PCO Other,PRC DELEGATED CO-COMMISSIONING,NORWOOD MEDICAL CENTRE SHEFFIELD,30375436,510.00 
Department of Health,NHS Sheffield CCG,31/12/2019,C&M-GMS PCO Seniority,PRC DELEGATED CO-COMMISSIONING,NORWOOD MEDICAL CENTRE SHEFFIELD,30375436,"2,131.97 "
Department of Health,NHS Sheffield CCG,31/12/2019,C&M-GMS Prem Notional Rent,PRC DELEGATED CO-COMMISSIONING,NORWOOD MEDICAL CENTRE SHEFFIELD,30375436,"5,187.50 "
Department of Health,NHS Sheffield CCG,31/12/2019,C&M-GMS Prem Rates,PRC DELEGATED CO-COMMISSIONING,NORWOOD MEDICAL CENTRE SHEFFIELD,30375436,"1,279.00 "
Department of Health,NHS Sheffield CCG,31/12/2019,C&M-GMS Prem Water Rates,PRC DELEGATED CO-COMMISSIONING,NORWOOD MEDICAL CENTRE SHEFFIELD,30375436,215.34 
Department of Health,NHS Sheffield CCG,31/12/2019,C&M-GMS Prof Fees Prescribing,PRC DELEGATED CO-COMMISSIONING,NORWOOD MEDICAL CENTRE SHEFFIELD,30375436,"2,353.36 "
Department of Health,NHS Sheffield CCG,31/12/2019,C&M-GMS QOF Aspiration,PRC DELEGATED CO-COMMISSIONING,NORWOOD MEDICAL CENTRE SHEFFIELD,30375436,"8,171.17 "
Department of Health,NHS Sheffield CCG,31/12/2019,C&M-GMS Cost of Drugs -Dispensing,LOCAL ENHANCED SERVICES,OUGHTIBRIDGE SURGERY,30375439,"(17,637.55)"
Department of Health,NHS Sheffield CCG,31/12/2019,C&M-GMS GP Statutory Levy,PRC DELEGATED CO-COMMISSIONING,OUGHTIBRIDGE SURGERY,30375439,(203.35)
Department of Health,NHS Sheffield CCG,31/12/2019,C&M-GMS PrscChrgsCll&RmttdbyGPCntra,PRC DELEGATED CO-COMMISSIONING,OUGHTIBRIDGE SURGERY,30375439,(738.00)
Department of Health,NHS Sheffield CCG,31/12/2019,C&M-GMS Cost of Drugs -Dispensing,LOCAL ENHANCED SERVICES,OUGHTIBRIDGE SURGERY,30375440,"30,287.13 "
Department of Health,NHS Sheffield CCG,31/12/2019,C&M-GMS Global Sum,PRC DELEGATED CO-COMMISSIONING,OUGHTIBRIDGE SURGERY,30375440,"43,567.76 "
Department of Health,NHS Sheffield CCG,31/12/2019,C&M-GMS PCN DES Participation,PRC DELEGATED CO-COMMISSIONING,OUGHTIBRIDGE SURGERY,30375440,889.02 
Department of Health,NHS Sheffield CCG,31/12/2019,C&M-GMS PCO Seniority,PRC DELEGATED CO-COMMISSIONING,OUGHTIBRIDGE SURGERY,30375440,"1,163.19 "
Department of Health,NHS Sheffield CCG,31/12/2019,C&M-GMS Prem Notional Rent,PRC DELEGATED CO-COMMISSIONING,OUGHTIBRIDGE SURGERY,30375440,"3,957.33 "
Department of Health,NHS Sheffield CCG,31/12/2019,C&M-GMS Prem Rates,PRC DELEGATED CO-COMMISSIONING,OUGHTIBRIDGE SURGERY,30375440,895.00 
Department of Health,NHS Sheffield CCG,31/12/2019,C&M-GMS Prof Fees Dispensing,PRC DELEGATED CO-COMMISSIONING,OUGHTIBRIDGE SURGERY,30375440,"4,485.82 "
Department of Health,NHS Sheffield CCG,31/12/2019,C&M-GMS PrscrptnChrgsColl&RmttdbyGP,LOCAL ENHANCED SERVICES,OUGHTIBRIDGE SURGERY,30375440,738.00 
Department of Health,NHS Sheffield CCG,31/12/2019,C&M-GMS QOF Aspiration,PRC DELEGATED CO-COMMISSIONING,OUGHTIBRIDGE SURGERY,30375440,"4,261.60 "
Department of Health,NHS Sheffield CCG,31/12/2019,C&M-GMS Cost of Drugs -Prescribing,LOCAL ENHANCED SERVICES,SHARROW LANE MEDICAL CENTRE,30375444,"4,107.36 "
Department of Health,NHS Sheffield CCG,31/12/2019,C&M-GMS Global Sum,PRC DELEGATED CO-COMMISSIONING,SHARROW LANE MEDICAL CENTRE,30375444,"23,795.26 "
Department of Health,NHS Sheffield CCG,31/12/2019,C&M-GMS MPIG Correction Factor,PRC DELEGATED CO-COMMISSIONING,SHARROW LANE MEDICAL CENTRE,30375444,980.16 
Department of Health,NHS Sheffield CCG,31/12/2019,C&M-GMS PCN DES Participation,PRC DELEGATED CO-COMMISSIONING,SHARROW LANE MEDICAL CENTRE,30375444,481.39 
Department of Health,NHS Sheffield CCG,31/12/2019,C&M-GMS PCO Other,PRC DELEGATED CO-COMMISSIONING,SHARROW LANE MEDICAL CENTRE,30375444,274.00 
Department of Health,NHS Sheffield CCG,31/12/2019,C&M-GMS PCO Seniority,PRC DELEGATED CO-COMMISSIONING,SHARROW LANE MEDICAL CENTRE,30375444,314.98 
Department of Health,NHS Sheffield CCG,31/12/2019,C&M-GMS Prem Notional Rent,PRC DELEGATED CO-COMMISSIONING,SHARROW LANE MEDICAL CENTRE,30375444,"2,741.67 "
Department of Health,NHS Sheffield CCG,31/12/2019,C&M-GMS Prem Rates,PRC DELEGATED CO-COMMISSIONING,SHARROW LANE MEDICAL CENTRE,30375444,581.00 
Department of Health,NHS Sheffield CCG,31/12/2019,C&M-GMS Prof Fees Prescribing,PRC DELEGATED CO-COMMISSIONING,SHARROW LANE MEDICAL CENTRE,30375444,806.91 
Department of Health,NHS Sheffield CCG,31/12/2019,C&M-GMS QOF Aspiration,PRC DELEGATED CO-COMMISSIONING,SHARROW LANE MEDICAL CENTRE,30375444,"2,666.85 "
Department of Health,NHS Sheffield CCG,31/12/2019,C&M-GMS Cost of Drugs -Prescribing,LOCAL ENHANCED SERVICES,SHIREGREEN MEDICAL CENTRE,30375451,"8,668.29 "
Department of Health,NHS Sheffield CCG,31/12/2019,C&M-GMS Global Sum,PRC DELEGATED CO-COMMISSIONING,SHIREGREEN MEDICAL CENTRE,30375451,"58,976.70 "
Department of Health,NHS Sheffield CCG,31/12/2019,C&M-GMS MPIG Correction Factor,PRC DELEGATED CO-COMMISSIONING,SHIREGREEN MEDICAL CENTRE,30375451,226.84 
Department of Health,NHS Sheffield CCG,31/12/2019,C&M-GMS PCN DES Participation,PRC DELEGATED CO-COMMISSIONING,SHIREGREEN MEDICAL CENTRE,30375451,"1,217.78 "
Department of Health,NHS Sheffield CCG,31/12/2019,C&M-GMS PCO Seniority,PRC DELEGATED CO-COMMISSIONING,SHIREGREEN MEDICAL CENTRE,30375451,"1,127.85 "
Department of Health,NHS Sheffield CCG,31/12/2019,C&M-GMS Prem Cost Rent,PRC DELEGATED CO-COMMISSIONING,SHIREGREEN MEDICAL CENTRE,30375451,"1,792.33 "
Department of Health,NHS Sheffield CCG,31/12/2019,C&M-GMS Prem Notional Rent,PRC DELEGATED CO-COMMISSIONING,SHIREGREEN MEDICAL CENTRE,30375451,"5,375.00 "
Department of Health,NHS Sheffield CCG,31/12/2019,C&M-GMS Prem Rates,PRC DELEGATED CO-COMMISSIONING,SHIREGREEN MEDICAL CENTRE,30375451,"1,922.00 "
Department of Health,NHS Sheffield CCG,31/12/2019,C&M-GMS Prof Fees Prescribing,PRC DELEGATED CO-COMMISSIONING,SHIREGREEN MEDICAL CENTRE,30375451,"1,657.67 "
Department of Health,NHS Sheffield CCG,31/12/2019,C&M-GMS QOF Aspiration,PRC DELEGATED CO-COMMISSIONING,SHIREGREEN MEDICAL CENTRE,30375451,"6,849.89 "
Department of Health,NHS Sheffield CCG,31/12/2019,C&M-GMS Cost of Drugs -Prescribing,LOCAL ENHANCED SERVICES,STONECROFT MEDICAL CENTRE,30375453,"6,308.89 "
Department of Health,NHS Sheffield CCG,31/12/2019,C&M-GMS Global Sum,PRC DELEGATED CO-COMMISSIONING,STONECROFT MEDICAL CENTRE,30375453,"32,495.15 "
Department of Health,NHS Sheffield CCG,31/12/2019,C&M-GMS MPIG Correction Factor,PRC DELEGATED CO-COMMISSIONING,STONECROFT MEDICAL CENTRE,30375453,309.13 
Department of Health,NHS Sheffield CCG,31/12/2019,C&M-GMS PCN DES Participation,PRC DELEGATED CO-COMMISSIONING,STONECROFT MEDICAL CENTRE,30375453,657.55 
Department of Health,NHS Sheffield CCG,31/12/2019,C&M-GMS PCO Other,PRC DELEGATED CO-COMMISSIONING,STONECROFT MEDICAL CENTRE,30375453,284.70 
Department of Health,NHS Sheffield CCG,31/12/2019,C&M-GMS PCO Seniority,PRC DELEGATED CO-COMMISSIONING,STONECROFT MEDICAL CENTRE,30375453,"1,496.26 "
Department of Health,NHS Sheffield CCG,31/12/2019,C&M-GMS Prem Notional Rent,PRC DELEGATED CO-COMMISSIONING,STONECROFT MEDICAL CENTRE,30375453,"2,808.33 "
Department of Health,NHS Sheffield CCG,31/12/2019,C&M-GMS Prem Rates,PRC DELEGATED CO-COMMISSIONING,STONECROFT MEDICAL CENTRE,30375453,"1,215.00 "
Department of Health,NHS Sheffield CCG,31/12/2019,C&M-GMS Prem Water Rates,PRC DELEGATED CO-COMMISSIONING,STONECROFT MEDICAL CENTRE,30375453,82.48 
Department of Health,NHS Sheffield CCG,31/12/2019,C&M-GMS Prof Fees Prescribing,PRC DELEGATED CO-COMMISSIONING,STONECROFT MEDICAL CENTRE,30375453,"1,118.04 "
Department of Health,NHS Sheffield CCG,31/12/2019,C&M-GMS QOF Aspiration,PRC DELEGATED CO-COMMISSIONING,STONECROFT MEDICAL CENTRE,30375453,"4,228.40 "
Department of Health,NHS Sheffield CCG,31/12/2019,C&M-GMS Cost of Drugs -Prescribing,LOCAL ENHANCED SERVICES,STANNINGTON MEDICAL CENTRE,30375455,"9,729.62 "
Department of Health,NHS Sheffield CCG,31/12/2019,C&M-GMS Global Sum,PRC DELEGATED CO-COMMISSIONING,STANNINGTON MEDICAL CENTRE,30375455,"26,202.20 "
Department of Health,NHS Sheffield CCG,31/12/2019,C&M-GMS PCO Other,PRC DELEGATED CO-COMMISSIONING,STANNINGTON MEDICAL CENTRE,30375455,237.70 
Department of Health,NHS Sheffield CCG,31/12/2019,C&M-GMS PCO Seniority,PRC DELEGATED CO-COMMISSIONING,STANNINGTON MEDICAL CENTRE,30375455,903.37 
Department of Health,NHS Sheffield CCG,31/12/2019,C&M-GMS Prem Notional Rent,PRC DELEGATED CO-COMMISSIONING,STANNINGTON MEDICAL CENTRE,30375455,"2,575.00 "
Department of Health,NHS Sheffield CCG,31/12/2019,C&M-GMS Prof Fees Prescribing,PRC DELEGATED CO-COMMISSIONING,STANNINGTON MEDICAL CENTRE,30375455,"1,767.26 "
Department of Health,NHS Sheffield CCG,31/12/2019,C&M-GMS QOF Aspiration,PRC DELEGATED CO-COMMISSIONING,STANNINGTON MEDICAL CENTRE,30375455,"2,881.70 "
Department of Health,NHS Sheffield CCG,31/12/2019,C&M-GMS Cost of Drugs -Prescribing,LOCAL ENHANCED SERVICES,TOTLEY RISE MEDICAL CENTRE,30375457,"4,078.98 "
Department of Health,NHS Sheffield CCG,31/12/2019,C&M-GMS Global Sum,PRC DELEGATED CO-COMMISSIONING,TOTLEY RISE MEDICAL CENTRE,30375457,"25,571.83 "
Department of Health,NHS Sheffield CCG,31/12/2019,C&M-GMS MPIG Correction Factor,PRC DELEGATED CO-COMMISSIONING,TOTLEY RISE MEDICAL CENTRE,30375457,51.57 
Department of Health,NHS Sheffield CCG,31/12/2019,C&M-GMS PCN DES Participation,PRC DELEGATED CO-COMMISSIONING,TOTLEY RISE MEDICAL CENTRE,30375457,504.35 
Department of Health,NHS Sheffield CCG,31/12/2019,C&M-GMS PCO Seniority,PRC DELEGATED CO-COMMISSIONING,TOTLEY RISE MEDICAL CENTRE,30375457,"1,127.85 "
Department of Health,NHS Sheffield CCG,31/12/2019,C&M-GMS Prem Notional Rent,PRC DELEGATED CO-COMMISSIONING,TOTLEY RISE MEDICAL CENTRE,30375457,"1,604.17 "
Department of Health,NHS Sheffield CCG,31/12/2019,C&M-GMS Prof Fees Prescribing,PRC DELEGATED CO-COMMISSIONING,TOTLEY RISE MEDICAL CENTRE,30375457,688.97 
Department of Health,NHS Sheffield CCG,31/12/2019,C&M-GMS QOF Aspiration,PRC DELEGATED CO-COMMISSIONING,TOTLEY RISE MEDICAL CENTRE,30375457,"2,304.18 "
Department of Health,NHS Sheffield CCG,31/12/2019,C&M-GMS Cost of Drugs -Prescribing,LOCAL ENHANCED SERVICES,TRAMWAYS MEDICAL CENTRE,30375459,"5,885.44 "
Department of Health,NHS Sheffield CCG,31/12/2019,C&M-GMS DES Learn Dsblty Hlth Chk,PRC DELEGATED CO-COMMISSIONING,TRAMWAYS MEDICAL CENTRE,30375459,140.00 
Department of Health,NHS Sheffield CCG,31/12/2019,C&M-GMS Global Sum,PRC DELEGATED CO-COMMISSIONING,TRAMWAYS MEDICAL CENTRE,30375459,"61,606.41 "
Department of Health,NHS Sheffield CCG,31/12/2019,C&M-GMS PCN DES Participation,PRC DELEGATED CO-COMMISSIONING,TRAMWAYS MEDICAL CENTRE,30375459,"1,263.94 "
Department of Health,NHS Sheffield CCG,31/12/2019,C&M-GMS PCO Other,PRC DELEGATED CO-COMMISSIONING,TRAMWAYS MEDICAL CENTRE,30375459,534.60 
Department of Health,NHS Sheffield CCG,31/12/2019,C&M-GMS PCO Seniority,PRC DELEGATED CO-COMMISSIONING,TRAMWAYS MEDICAL CENTRE,30375459,"2,835.09 "
Department of Health,NHS Sheffield CCG,31/12/2019,C&M-GMS Prem Cost Rent,PRC DELEGATED CO-COMMISSIONING,TRAMWAYS MEDICAL CENTRE,30375459,"4,012.75 "
Department of Health,NHS Sheffield CCG,31/12/2019,C&M-GMS Prem Rates,PRC DELEGATED CO-COMMISSIONING,TRAMWAYS MEDICAL CENTRE,30375459,"1,098.00 "
Department of Health,NHS Sheffield CCG,31/12/2019,C&M-GMS Prof Fees Prescribing,PRC DELEGATED CO-COMMISSIONING,TRAMWAYS MEDICAL CENTRE,30375459,976.58 
Department of Health,NHS Sheffield CCG,31/12/2019,C&M-GMS QOF Aspiration,PRC DELEGATED CO-COMMISSIONING,TRAMWAYS MEDICAL CENTRE,30375459,"5,645.42 "
Department of Health,NHS Sheffield CCG,31/12/2019,C&M-GMS GP Statutory Levy,PRC DELEGATED CO-COMMISSIONING,UPPERTHORPE MEDICAL CENTRE,30375461,(416.54)
Department of Health,NHS Sheffield CCG,31/12/2019,C&M-GMS Cost of Drugs -Prescribing,LOCAL ENHANCED SERVICES,WALKLEY HOUSE MEDICAL CENTRE,30375466,"12,203.10 "
Department of Health,NHS Sheffield CCG,31/12/2019,C&M-GMS Global Sum,PRC DELEGATED CO-COMMISSIONING,WALKLEY HOUSE MEDICAL CENTRE,30375466,"85,699.63 "
Department of Health,NHS Sheffield CCG,31/12/2019,C&M-GMS PCN DES Participation,PRC DELEGATED CO-COMMISSIONING,WALKLEY HOUSE MEDICAL CENTRE,30375466,"1,749.49 "
Department of Health,NHS Sheffield CCG,31/12/2019,C&M-GMS PCO Seniority,PRC DELEGATED CO-COMMISSIONING,WALKLEY HOUSE MEDICAL CENTRE,30375466,"1,298.70 "
Department of Health,NHS Sheffield CCG,31/12/2019,C&M-GMS Prem Notional Rent,PRC DELEGATED CO-COMMISSIONING,WALKLEY HOUSE MEDICAL CENTRE,30375466,"5,635.50 "
Department of Health,NHS Sheffield CCG,31/12/2019,C&M-GMS Prem Rates,PRC DELEGATED CO-COMMISSIONING,WALKLEY HOUSE MEDICAL CENTRE,30375466,"1,845.00 "
Department of Health,NHS Sheffield CCG,31/12/2019,C&M-GMS Prof Fees Prescribing,PRC DELEGATED CO-COMMISSIONING,WALKLEY HOUSE MEDICAL CENTRE,30375466,"2,432.35 "
Department of Health,NHS Sheffield CCG,31/12/2019,C&M-GMS QOF Aspiration,PRC DELEGATED CO-COMMISSIONING,WALKLEY HOUSE MEDICAL CENTRE,30375466,"8,602.90 "
Department of Health,NHS Sheffield CCG,31/12/2019,C&M-GMS DES Learn Dsblty Hlth Chk,PRC DELEGATED CO-COMMISSIONING,BASLOW ROAD & SHOREHAM STREET SURGERIES,30391476,"1,260.00 "
Department of Health,NHS Sheffield CCG,31/12/2019,C&M-GMS Global Sum,PRC DELEGATED CO-COMMISSIONING,BASLOW ROAD & SHOREHAM STREET SURGERIES,30391476,"98,044.33 "
Department of Health,NHS Sheffield CCG,31/12/2019,C&M-GMS MPIG Correction Factor,PRC DELEGATED CO-COMMISSIONING,BASLOW ROAD & SHOREHAM STREET SURGERIES,30391476,146.21 
Department of Health,NHS Sheffield CCG,31/12/2019,C&M-GMS PCN DES Participation,PRC DELEGATED CO-COMMISSIONING,BASLOW ROAD & SHOREHAM STREET SURGERIES,30391476,"2,012.54 "
Department of Health,NHS Sheffield CCG,31/12/2019,C&M-GMS PCO Seniority,PRC DELEGATED CO-COMMISSIONING,BASLOW ROAD & SHOREHAM STREET SURGERIES,30391476,"1,506.43 "
Department of Health,NHS Sheffield CCG,31/12/2019,C&M-GMS Prem Notional Rent,PRC DELEGATED CO-COMMISSIONING,BASLOW ROAD & SHOREHAM STREET SURGERIES,30391476,"8,222.71 "
Department of Health,NHS Sheffield CCG,31/12/2019,C&M-GMS Prem Rates,PRC DELEGATED CO-COMMISSIONING,BASLOW ROAD & SHOREHAM STREET SURGERIES,30391476,"2,421.00 "
Department of Health,NHS Sheffield CCG,31/12/2019,C&M-GMS Prem Water Rates,PRC DELEGATED CO-COMMISSIONING,BASLOW ROAD & SHOREHAM STREET SURGERIES,30391476,425.94 
Department of Health,NHS Sheffield CCG,31/12/2019,C&M-GMS QOF Aspiration,PRC DELEGATED CO-COMMISSIONING,BASLOW ROAD & SHOREHAM STREET SURGERIES,30391476,"10,278.96 "
Department of Health,NHS Sheffield CCG,31/12/2019,C&M-GMS Cost of Drugs -Prescribing,LOCAL ENHANCED SERVICES,DUKE MEDICAL CENTRE,30391480,"7,635.44 "
Department of Health,NHS Sheffield CCG,31/12/2019,C&M-GMS DES Learn Dsblty Hlth Chk,PRC DELEGATED CO-COMMISSIONING,DUKE MEDICAL CENTRE,30391480,140.00 
Department of Health,NHS Sheffield CCG,31/12/2019,C&M-GMS Global Sum,PRC DELEGATED CO-COMMISSIONING,DUKE MEDICAL CENTRE,30391480,"59,187.06 "
Department of Health,NHS Sheffield CCG,31/12/2019,C&M-GMS MPIG Correction Factor,PRC DELEGATED CO-COMMISSIONING,DUKE MEDICAL CENTRE,30391480,306.25 
Department of Health,NHS Sheffield CCG,31/12/2019,C&M-GMS PCN DES Participation,PRC DELEGATED CO-COMMISSIONING,DUKE MEDICAL CENTRE,30391480,"1,138.79 "
Department of Health,NHS Sheffield CCG,31/12/2019,C&M-GMS PCO Other,PRC DELEGATED CO-COMMISSIONING,DUKE MEDICAL CENTRE,30391480,458.30 
Department of Health,NHS Sheffield CCG,31/12/2019,C&M-GMS PCO Seniority,PRC DELEGATED CO-COMMISSIONING,DUKE MEDICAL CENTRE,30391480,"1,194.51 "
Department of Health,NHS Sheffield CCG,31/12/2019,C&M-GMS Prem Notional Rent,PRC DELEGATED CO-COMMISSIONING,DUKE MEDICAL CENTRE,30391480,"5,721.67 "
Department of Health,NHS Sheffield CCG,31/12/2019,C&M-GMS Prem Rates,PRC DELEGATED CO-COMMISSIONING,DUKE MEDICAL CENTRE,30391480,"1,311.00 "
Department of Health,NHS Sheffield CCG,31/12/2019,C&M-GMS Prof Fees Prescribing,PRC DELEGATED CO-COMMISSIONING,DUKE MEDICAL CENTRE,30391480,"1,303.47 "
Department of Health,NHS Sheffield CCG,31/12/2019,C&M-GMS QOF Aspiration,PRC DELEGATED CO-COMMISSIONING,DUKE MEDICAL CENTRE,30391480,"5,166.69 "
Department of Health,NHS Sheffield CCG,31/12/2019,C&M-GMS Cost of Drugs -Prescribing,LOCAL ENHANCED SERVICES,HANDSWORTH MEDICAL PRACTICE SHEFFIELD,30391482,"11,871.88 "
Department of Health,NHS Sheffield CCG,31/12/2019,C&M-GMS DES Learn Dsblty Hlth Chk,PRC DELEGATED CO-COMMISSIONING,HANDSWORTH MEDICAL PRACTICE SHEFFIELD,30391482,980.00 
Department of Health,NHS Sheffield CCG,31/12/2019,C&M-GMS Global Sum,PRC DELEGATED CO-COMMISSIONING,HANDSWORTH MEDICAL PRACTICE SHEFFIELD,30391482,"77,964.76 "
Department of Health,NHS Sheffield CCG,31/12/2019,C&M-GMS PCN DES Participation,PRC DELEGATED CO-COMMISSIONING,HANDSWORTH MEDICAL PRACTICE SHEFFIELD,30391482,"1,567.06 "
Department of Health,NHS Sheffield CCG,31/12/2019,C&M-GMS PCO Locum Adop/Pat/Mat,PRC DELEGATED CO-COMMISSIONING,HANDSWORTH MEDICAL PRACTICE SHEFFIELD,30391482,"7,294.56 "
Department of Health,NHS Sheffield CCG,31/12/2019,C&M-GMS PCO Seniority,PRC DELEGATED CO-COMMISSIONING,HANDSWORTH MEDICAL PRACTICE SHEFFIELD,30391482,"1,358.65 "
Department of Health,NHS Sheffield CCG,31/12/2019,C&M-GMS Prem Notional Rent,PRC DELEGATED CO-COMMISSIONING,HANDSWORTH MEDICAL PRACTICE SHEFFIELD,30391482,"3,321.66 "
Department of Health,NHS Sheffield CCG,31/12/2019,C&M-GMS Prem Water Rates,PRC DELEGATED CO-COMMISSIONING,HANDSWORTH MEDICAL PRACTICE SHEFFIELD,30391482,629.63 
Department of Health,NHS Sheffield CCG,31/12/2019,C&M-GMS Prof Fees Prescribing,PRC DELEGATED CO-COMMISSIONING,HANDSWORTH MEDICAL PRACTICE SHEFFIELD,30391482,"2,401.18 "
Department of Health,NHS Sheffield CCG,31/12/2019,C&M-GMS QOF Aspiration,PRC DELEGATED CO-COMMISSIONING,HANDSWORTH MEDICAL PRACTICE SHEFFIELD,30391482,"7,811.29 "
Department of Health,NHS Sheffield CCG,31/12/2019,C&M-GMS GP Statutory Levy,PRC DELEGATED CO-COMMISSIONING,GRENOSIDE SURGERY,30391484,(265.62)
Department of Health,NHS Sheffield CCG,31/12/2019,C&M-GMS Cost of Drugs -Prescribing,LOCAL ENHANCED SERVICES,UPPERTHORPE MEDICAL CENTRE,30391485,"13,425.91 "
Department of Health,NHS Sheffield CCG,31/12/2019,C&M-GMS DES Learn Dsblty Hlth Chk,PRC DELEGATED CO-COMMISSIONING,UPPERTHORPE MEDICAL CENTRE,30391485,980.00 
Department of Health,NHS Sheffield CCG,31/12/2019,C&M-GMS Global Sum,PRC DELEGATED CO-COMMISSIONING,UPPERTHORPE MEDICAL CENTRE,30391485,"84,509.61 "
Department of Health,NHS Sheffield CCG,31/12/2019,C&M-GMS MPIG Correction Factor,PRC DELEGATED CO-COMMISSIONING,UPPERTHORPE MEDICAL CENTRE,30391485,662.87 
Department of Health,NHS Sheffield CCG,31/12/2019,C&M-GMS PCN DES Participation,PRC DELEGATED CO-COMMISSIONING,UPPERTHORPE MEDICAL CENTRE,30391485,"1,681.95 "
Department of Health,NHS Sheffield CCG,31/12/2019,C&M-GMS PCO Locum Sickness,PRC DELEGATED CO-COMMISSIONING,UPPERTHORPE MEDICAL CENTRE,30391485,"10,797.68 "
Department of Health,NHS Sheffield CCG,31/12/2019,C&M-GMS PCO Seniority,PRC DELEGATED CO-COMMISSIONING,UPPERTHORPE MEDICAL CENTRE,30391485,"2,489.72 "
Department of Health,NHS Sheffield CCG,31/12/2019,C&M-GMS Prem Actual Rent,PRC DELEGATED CO-COMMISSIONING,UPPERTHORPE MEDICAL CENTRE,30391485,"29,475.00 "
Department of Health,NHS Sheffield CCG,31/12/2019,C&M-GMS Prem Notional Rent,PRC DELEGATED CO-COMMISSIONING,UPPERTHORPE MEDICAL CENTRE,30391485,"2,547.83 "
Department of Health,NHS Sheffield CCG,31/12/2019,C&M-GMS Prem Rates,PRC DELEGATED CO-COMMISSIONING,UPPERTHORPE MEDICAL CENTRE,30391485,"2,318.00 "
Department of Health,NHS Sheffield CCG,31/12/2019,C&M-GMS Prem Water Rates,PRC DELEGATED CO-COMMISSIONING,UPPERTHORPE MEDICAL CENTRE,30391485,223.00 
Department of Health,NHS Sheffield CCG,31/12/2019,C&M-GMS Prof Fees Prescribing,PRC DELEGATED CO-COMMISSIONING,UPPERTHORPE MEDICAL CENTRE,30391485,"2,335.91 "
Department of Health,NHS Sheffield CCG,31/12/2019,C&M-GMS QOF Aspiration,PRC DELEGATED CO-COMMISSIONING,UPPERTHORPE MEDICAL CENTRE,30391485,"9,072.83 "
Department of Health,NHS Sheffield CCG,31/12/2019,C&M-GMS Cost of Drugs -Prescribing,LOCAL ENHANCED SERVICES,WHITE HOUSE SURGERY SHEFFIELD,30391486,"12,863.48 "
Department of Health,NHS Sheffield CCG,31/12/2019,C&M-GMS DES Learn Dsblty Hlth Chk,PRC DELEGATED CO-COMMISSIONING,WHITE HOUSE SURGERY SHEFFIELD,30391486,560.00 
Department of Health,NHS Sheffield CCG,31/12/2019,C&M-GMS Global Sum,PRC DELEGATED CO-COMMISSIONING,WHITE HOUSE SURGERY SHEFFIELD,30391486,"52,092.41 "
Department of Health,NHS Sheffield CCG,31/12/2019,C&M-GMS MPIG Correction Factor,PRC DELEGATED CO-COMMISSIONING,WHITE HOUSE SURGERY SHEFFIELD,30391486,695.65 
Department of Health,NHS Sheffield CCG,31/12/2019,C&M-GMS PCN DES Participation,PRC DELEGATED CO-COMMISSIONING,WHITE HOUSE SURGERY SHEFFIELD,30391486,"1,038.45 "
Department of Health,NHS Sheffield CCG,31/12/2019,C&M-GMS PCO Locum Adop/Pat/Mat,PRC DELEGATED CO-COMMISSIONING,WHITE HOUSE SURGERY SHEFFIELD,30391486,"2,286.12 "
Department of Health,NHS Sheffield CCG,31/12/2019,C&M-GMS PCO Recruitmt & Retn,PRC DELEGATED CO-COMMISSIONING,WHITE HOUSE SURGERY SHEFFIELD,30391486,"2,000.00 "
Department of Health,NHS Sheffield CCG,31/12/2019,C&M-GMS PCO Seniority,PRC DELEGATED CO-COMMISSIONING,WHITE HOUSE SURGERY SHEFFIELD,30391486,"1,665.68 "
Department of Health,NHS Sheffield CCG,31/12/2019,C&M-GMS Prem Notional Rent,PRC DELEGATED CO-COMMISSIONING,WHITE HOUSE SURGERY SHEFFIELD,30391486,"9,412.50 "
Department of Health,NHS Sheffield CCG,31/12/2019,C&M-GMS Prem Rates,PRC DELEGATED CO-COMMISSIONING,WHITE HOUSE SURGERY SHEFFIELD,30391486,"2,443.00 "
Department of Health,NHS Sheffield CCG,31/12/2019,C&M-GMS Prem Water Rates,PRC DELEGATED CO-COMMISSIONING,WHITE HOUSE SURGERY SHEFFIELD,30391486,264.64 
Department of Health,NHS Sheffield CCG,31/12/2019,C&M-GMS Prof Fees Prescribing,PRC DELEGATED CO-COMMISSIONING,WHITE HOUSE SURGERY SHEFFIELD,30391486,"2,670.94 "
Department of Health,NHS Sheffield CCG,31/12/2019,C&M-GMS QOF Aspiration,PRC DELEGATED CO-COMMISSIONING,WHITE HOUSE SURGERY SHEFFIELD,30391486,"6,233.52 "
Department of Health,NHS Sheffield CCG,31/12/2019,Hcare Srv Rec Fdtn Trust-Non Contract,NCAS/OATS,YORK TEACHING HOSPITAL NHS FOUNDATION TRUST,30399815,"31,364.85 "
